Workbook

Sheet conjugate diameters
E1: angle of diameter | F1: φ | G1: phi | H1: ψ | I1: psi hyp | J1: tanψ | K1: =(BBB/AAA)^2/TAN(phi) -> 1.750395623 | L1: psi_ellipsi | M1: =-K1 -> -1.750395623 | AC1: The tangent bisects ɅHPS | AE1: ɅHPR | AF1: =ASIN(AF2) -> 0.9673714308 | AG1: ɅRPS | AH1: =ASIN(AH2) -> 0.9673714308 | AJ1: F | AK1: STATHERA | AL1: =ABSTCONST -> 40.99684401 | AO1: EPILOGI | AP1: GRAV RIGHT | AQ1: REPULSIIVE | AR1: ELASTIC | AS1: GONIA | AT1: =PI()/50*PERPATA -> 1.256637061 | AU1: fi_1 | AV1: fi_2 | AW1: fi_3 | AX1: PROS | AY1: =IF(EPILOGI=1,1,-1) -> -1 | BF1: 65 | BG1: =-BF1 -> -65 | BH1: VIMATA | BI1: 8 | BJ1: FI1 | BK1: -0.9 | BL1: -28 | BM1: kin energy | BN1: VELOCITY1 | BO1: TAN | BP1: perp | BQ1: perp1 | BV1: POT1x = MaSS * STATHera / Sqr((XP - cc) ^ 2 + YP ^ 2) | CC1: VAPEIRO | CD1: =VO*(AAA+CCC)/(BBB) -> 38.59126028 | CE1: VAPELXI | CF1: =(CCC-AAA)*AAA/BBB -> 2.332134254 | CG1: FOR ELASTIC FORCE | DM1: =IF(EPILOGI=1,$DU$2&$DU$3&$DU$4," ") ->  | DT1: KEIMENO1 | DU1: =IF(EPILOGI=1,$DU$2&$DU$3&$DU$4," ") ->  | DV1: =IF(EPILOGI=1,$DY$4&$DY$5,"X") -> X | DW1: 1 | DX1: 12 | EA1: KEIMENO2
C2: AAA | F2: 10 | G2: =RADIANS(F2) -> 0.1745329252 | I2: =ATAN(K1) -> 1.05174758 | J2: =DEGREES(psi) -> 60.26069746 | L2: =ATAN(M1) -> -1.05174758 | AB2: SO ɅHPR=ɅIPZ | AD2: 15 | AE2: ang1 | AF2: =exoteriko(PX+CCC,PY,AF3,AG3) -> 0.8233969364 | AG2: ang2 | AH2: =exoteriko(AF3,AG3,PX-CCC,PY) -> 0.8233969364 | AI2: ABSTCPMST | AJ2: =1/2*(V_O^2=VO^2)*(1/(AAA-CCC)-1/(AAA+CCC)) -> 0 | AK2: STATH2 | AL2: 7 | AM2: maza | AO2: 1 | AP2: =IF(EPILOGI=1,TRUE,FALSE) -> FALSE | AQ2: =IF(EPILOGI=2,TRUE,FALSE) -> TRUE | AR2: =IF(EPILOGI=3,TRUE,FALSE) -> FALSE | AS2: FORCECONST | AT2: =IF(EPILOGI=1,STATHERA,IF(EPILOGI=2,STATH22,STATH2)) -> -363.7192302 | AV2: POLLAPLASIASTIS | AW2: =20 -> 20 | AZ2: -12 | BA2: -12 | BB2: 14 | BC2: 14 | BD2: 43 | BE2: =-BD2 -> -43 | BF2: =BE2*PI()/180 -> -0.7504915784 | BG2: Fi1= | BH2: =BE2 -> -43 | BI2: 2 | BJ2: X1Y1 | BK2: =xp -> 14.47853229 | BL2: =yp_ -> -6.300791088 | BM2: =$CE$34 -> 1101.524048 | BN2: =SQRT(2*BM2/MASS)/SMIK -> 6.996901055 | BO2: =tanfp -> -0.7092256741 | BP2: =ATAN(BO4) -> 0.9539054333 | BQ2: =IF(vimata>0,xp,xp+1000) -> 14.47853229 | BR2: =IF(vimata>0,yp_,yp_+1000) -> -6.300791088 | BS2: =BQ3-BQ2 -> -1.240196017 | BT2: =BN2*COS(BO3) -> 5.707239391 | BU2: =BN2*SIN(BO3) -> -4.047720705 | BV2: POT2X = MaSS * STATHera / Sqr((XQ - cc) ^ 2 + YQ ^ 2) | CC2: STATHAPOSI | CD2: =CG6 -> 67017.84166 | CE2: STATHELXI | CF2: =CG5 -> 302.1583432 | CG2: WE CAN ASSUME A STATHERA AND CALCULATE THE MAXIMUM DISTANCE | CO2: KIN | CP2: POT | DU2: IN THE CASE OF atractive FORCE FROM SIMILAR TRIANGLES AND PARALLELS: | DV2: so ST'·V2=SP"·V1=SR'·V3 Each product expresses the law of areas for each point. | DW2: 1.5 | DX2: 5 | EA2: -10 | EB2: 25
C3: BBB | G3: Llhyp | H3: =COS(phi)^2/AAA^2-(SIN(phi)/BBB)^2 -> 0.01076726366 | I3: LELLIPS | K3: LELIPS | L3: =COS(phi)^2/AAA^2+(SIN(phi)/BBB)^2 -> 0.01317955882 | AC3: LINE hps | AF3: =1/SQRT(1+((BBB/AAA)^2*PX/PY)^2) -> 0.4960543972 | AG3: =AF3*(BBB/AAA)^2*PX/PY -> 0.8682914459 | AK3: STATH2 | AL3: 0.72 | AM3: =6^2/BBB^2 -> 1.44 | AO3: PERPATA | AP3: STATH22 | AQ3: =1/2*(V_OO^2-Voo^2)*(1/(AAA-CCC)-1/(AAA+CCC)) -> -363.7192302 | AS3: ENERGIA | AZ3: -12 | BA3: -12 | BB3: 12 | BC3: 12 | BD3: 24 | BE3: =BD3-25 -> -1 | BF3: =BE3*PI()/180 -> -0.01745329252 | BG3: fi2 | BH3: =BE3 -> -1 | BI3: 2 | BJ3: X2Y2 | BK3: =BK2+SIGN(BL2)*BN2*COS(BO3) -> 8.771292903 | BL3: =BL2+(BO2)*(BK3-BK2) -> -2.253070383 | BM3: SIGNX | BN3: =SIGN(BK3-BK2) -> -1 | BO3: =ATAN(BO2) -> -0.6168908935 | BP3: =ATAN(BO2) -> -0.6168908935 | BQ3: =IF(vimata>0,AX,AX+1000) -> 13.23833628 | BR3: =IF(vimata>0,AY,AY+1000) -> -8.049453132 | BS3: =(BQ3-BQ2)*(BK3-BK2)+(BR3-BR2)*(BL3-BL2) -> 0 | BT3: =1/BN2*1*COS(BP2)*ddd_2 -> 2.480392035 | BU3: =1/BN2*1*SIN(BP2)*ddd_2 -> 3.497324089 | BV3: POT3x = MaSS * STATHera / Sqr((XR - cc) ^ 2 + YR ^ 2) | CC3: ENERGIAPS | CD3: =1/2*MASS*VO^2+STATHAPOSI/(CCC+AAA) -> 3723.213425 | CE3: ENERGELXI | CF3: =1/2*MASS*VO^2-STATHELXI/(CCC-AAA) -> 16.78657462 | CG3: 1/2MVO²+KA²=KSMAX² | CJ3: SMAX | CK3: =SQRT(MASS/STATHAPOSI+AAA^2) -> 9.000004145 | CM3: =AAA -> 9 | CN3: R | CO3: =AAA -> 9 | CP3: =STATHELXI/CM3 -> 33.57314924 | CQ3: =ENERGELXI+CP3 -> 50.35972387 | CR3: =SQRT(2*CQ3/MASS) -> 4.488194464 | DU3: ST/SD=SP:/P"D=SP/(K/V1)=SP"·V1/K ST/SD=ST'/DT"=ST'/(K/V2)=ST'·V2/K | DV3: so the law oa areaas is valid for the case of the repulsive force | DW3: -1 | DX3: 10 | EA3: -10 | EB3: 5
C4: CCC | G4: mhyp | H4: =COS(phi)*COS(psi)/AAA^2-SIN(phi)*SIN(psi)/BBB^2 -> 0 | L4: =COS(phi)*COS(psi_el)/AAA^2+SIN(phi)*SIN(psi_el)/BBB^2 -> 0 | AC4: =-CCC -> -10.29563014 | AD4: 0 | AF4: =AF3^2+AG3^2 -> 1 | AK4: mass_2 | AL4: 3 | AM4: =1/2*mass_2*6^2-1/2*STATH2*mass_2*AAA^2 -> -796.5 | AN4: PERPATA | AO4: 20 | AP4: ENERGY | AQ4: =ENERGY_YP -> 408.2119878 | AS4: MAZA | AZ4: -12 | BA4: -12 | BB4: 10 | BC4: 10 | BD4: 36 | BE4: =BD4 -> 36 | BF4: =BE4*PI()/180 -> 0.6283185307 | BG4: fi3 | BH4: =BE4 -> 36 | BJ4: X3Y3 | BK4: =BK3+BQ5 -> 8.899238867 | BL4: =BL3+BR5 -> -2.632055647 | BM4: SIGNY | BN4: =SIGN(BL3-BL2) -> 1 | BO4: =TanpRpp -> 1.409988437 | BP4: =TAN(BP2) -> 1.409988437 | BQ4: x | BR4: y | BS4: =$CD$20 -> -8.049453132 | BT4: =BT3*BT2 -> 14.15619113 | BU4: =BU3*BU2 -> -14.15619113 | CA4: FOR ELASTIC | CC4: SMAX²=MASS/STATH+AAA² | CF4: from centripetal force = force | CJ4: XMAXELAST | CK4: QW | CN4: foci | DU4: SV/SE=SR'/ER"=SR'/(K/V3) SV/VE=ST/S'E=ST/T"D=ST/T'V=ST·V2/K | DY4: SV/SE=SR'/ER"=SR'/(K/V3) SV/VE=ST/S'E=ST/T"D=ST/T'V=ST·V2/K
G5: nhup | H5: =(COS(psi)/AAA)^2-(SIN(psi)/BBB)^2 -> -0.0271193006 | I5: NHYP | K5: NELIPS | L5: =COS(psi_el)^2/AAA^2+(SIN(psi_el)/BBB)^2 -> 0.0331951022 | AA5: X²/A²-Y²/B²=1 | AC5: =PX -> 9.490711791 | AD5: =PY -> 1.673468555 | AI5: FOCI | AJ5: HS | AK5: energy_3 | AL5: =1/2*mass_2*STATH2*AAA^2+1/2*mass_2*6^2 -> 904.5 | AM5: =STATHERA -> 40.99684401 | AN5: Voo | AO5: 2 | AP5: ENERGY_YP | AQ5: =1/2*MASS*VO^2-MASS*ABS(STATHERA)/(AAA-CCC) -> 408.2119878 | AS5: POT_ENERGY | AV5: 124 | AW5: perpataa | AX5: =AV5-90 -> 34 | AZ5: -12 | BA5: -12 | BB5: 7 | BC5: 7 | BD5: 3 | BF5: =IF(EPILOGI=1,"ATTRACTIVE",IF(EPILOGI=2,"REPULSIVE","ELASTIC")) -> REPULSIVE | BJ5: X4Y4 | BK5: =BK3+BQ6 -> 9.171266785 | BL5: =BL3+BR6 -> -2.248499428 | BM5: F | BN5: =-BO3 -> 0.6168908935 | BO5: =-BN3*DAA*COS(PI()/5) -> 0.3236067977 | BP5: =-BN4*DAA*SIN(PI()/5) -> -0.2351141009 | BQ5: =BO5*COS(BN5)+BP5*SIN(BN5) -> 0.1279459638 | BR5: =-BO5*SIN(BN5)+BP5*COS(BN5) -> -0.378985264 | BV5: =ddd_2 -> 30 | CC5: SMAX²=X²+(B/A)²X²-B² | CF5: epilogi =1 | CG5: =MASS*VO^2*(CCC-AAA)^2/aktin -> 302.1583432 | CJ5: YMAXELAST | CN5: =-CCC -> -10.29563014 | CO5: 0 | CU5: 0 | CV5: 0 | DU5: IN THE CASE OF REPULSIVE FORCE FROM SIMILAR TRIANGLES AND PARALLELS: | DY5: so ST'·V2=SP"·V1=SR'·V3 SO S IS THE CENTER
D6: =AAA*TAN(A10) -> -286.3846436 | E6: =BBB/COS(A10) -> 159.181126 | G6: Ahyp | H6: =1/SQRT(Llhyp) -> 9.637121318 | I6: =-15 -> -15 | J6: =I6*SIN(phi) -> -2.604722665 | L6: 0 | M6: ="MHNYMA"&TEXT(L6,"0") -> MHNYMA0 | N6: Let CA, CB be the semi-axes of the hyperbola | T6: -1 | U6: 2 | V6: 12 | W6: 10 | AC6: =CCC -> 10.29563014 | AD6: 0 | AE6: F~QR/t² | AF6: t~QT∙SP | AG6: F~QR/(QT∙SP}² | AI6: =-CCC -> -10.29563014 | AJ6: 0 | AK6: ddd_2_2 | AL6: 30 | AN6: V_OO | AO6: =Voo*((AAA+CCC)/(AAA-CCC)) -> -29.7857074 | AQ6: =1/2*MASS*VO^2 -> 250 | AS6: KIN_ENERGY | BH6: =RADIANS(-27) -> -0.471238898 | BJ6: X5Y5 | BK6: =BK3 -> 8.771292903 | BL6: =BL3 -> -2.253070383 | BM6: =BK1 -> -0.9 | BO6: =BO5 -> 0.3236067977 | BP6: =-BP5 -> 0.2351141009 | BQ6: =BO6*COS(BN5)+BP6*SIN(BN5) -> 0.3999738821 | BR6: =-BO6*SIN(BN5)+BP6*COS(BN5) -> 0.004570955411 | BV6: =EPILOGI -> 2 | BY6: =ENERGIAPS -> 3723.213425 | CC6: XMAX | CD6: =(SMAX²+B²)*A²/C² | CF6: epilogi =2 | CG6: =MASS*VO^2*(CCC+AAA)^2/aktin -> 67017.84166 | CJ6: ENERELAST | CK6: =1/2*MASS*VO^2-1/2*STATHEL*AAA^2 -> -560 | CN6: =CCC -> 10.29563014 | CO6: 0 | CR6: elastic | CU6: 0 | CV6: 0 | CY6: repulsion | DA6: =ENERGIAPS -> 3723.213425 | DB6: =STATHAPOSI -> 67017.84166 | DJ6: attractive | DU6: ST/TD=SP:/pD=SP/(K/V1)=SP"·V1/K ST/TD=ST'/DT'=ST/(K/V2)=ST'·V2/K | DV6: so ST'·V2=SP"·V1=SR'·V3
A7: ELLIPSE | D7: =AAA*TAN(-A10) -> 286.3846436 | E7: =BBB/COS(-A10) -> 159.181126 | G7: BHYP | H7: =1/SQRT(-nhup) -> 6.072405396 | I7: =15 -> 15 | J7: =I7*SIN(phi) -> 2.604722665 | L7: =L6+1 -> 1 | M7: ="MHNYMA"&TEXT(L7,"0") -> MHNYMA1 | N7: PG, KD other conjugate diameters | T7: -17 | U7: 2 | V7: -7 | W7: -6 | AA7: X1 | AB7: =-Ahyp -> -9.637121318 | AC7: POINT WHERE THE ONE DIAMETER CUTS THE HYPERBBLA | AE7: GV∙PV/QV² | AF7: =SQRT((GX-VX)^2+(GY-VY)^2)*SQRT((PX-VX)^2+(PY-VY)^2)/((qx-VX)^2+(qy-VY)^2) ->  | AI7: =CCC -> 10.29563014 | AJ7: 0 | AK7: AAA | AL7: =AAA -> 9 | AN7: VO | AO7: =10 -> 10 | AP7: V_O | AQ7: =VO*(AAA-CCC)/(AAA+CCC) -> -0.6714629849 | AS7: VELOCITY | BA7: =CCC -> 10.29563014 | BB7: =INT(2.4*BBB) -> 12 | BC7: =DEGREES(perpataa*PI()/180) -> 34 | BE7: angle of moving point= | BG7: =BF7-20 -> -20 | BH7: =PI()+BH6 -> 2.670353756 | BJ7: FI2 | BK7: 0.2 | BL7: -28 | BM7: kin energy | BN7: VELOCITY1 | BO7: TAN | BP7: perp | BQ7: perp1 | BV7: =PROS -> -1 | BY7: =ENERGELXI -> 16.78657462 | CC7: 1/2MVO²+1/2KR²=1/2KS² | CF7: epilogi=3 | CG7: =MASS*VO^2/(AAA)/aktin -> 20 | CJ7: STATHEL | CK7: =CG7 -> 20 | CN7: case of elastic force | CS7: =ENERELAST -> -560 | CX7: case of repulsive force with center at -c | DQ7: case of attractive fore | DU7: SV/VE=SR'/ER"=SR'/(K/V3) SV/VE=ST/V'E=ST/T"D=ST/T'V=ST·V2/K | DV7: .Each product expresses the law of areas for each points. so the law oa areaas is valid for the case of the repulsive force
A8: FI | C8: MAXDX | D8: =ABS(D7-D6) -> 572.7692872 | I8: =-20 -> -20 | J8: =TAN(psi)*I8 -> -35.00791247 | L8: =L7+1 -> 2 | M8: ="MHNYMA"&TEXT(L8,"0") -> MHNYMA2 | N8: PF a perpendicular to the diameter KD Qv an ordinate to the diameter GP | V8: 7 | W8: 9 | X8: 8 | Y8: 5 | AA8: Y1 | AB8: 0 | AC8: GP | AE8: QV²/QX² | AF8: =((qx-VX)^2+(qy-VY)^2)/((qx-XX)^2+(qy-XY)^2) ->  | AG8: L/GV | AH8: =L/SQRT((GX-VX)^2+(GY-VY)^2) ->  | AI8: PV/GV | AJ8: =SQRT((PX-VX)^2+(PY-VY)^2)/SQRT((GX-VX)^2+(GY-VY)^2) ->  | AK8: VELOCITY | AN8: MASS | AO8: 5 | AP8: 1 | AQ8: =1/2*(V_O^2-VO^2)*(1/(AAA-CCC)-1/(AAA+CCC)) -> 40.99684401 | AS8: energy22 | AT8: =1/2*MASS*Voo^2-STATH22*MASS/(AAA+CCC) -> 104.2491195 | BA8: =CCC -> 10.29563014 | BB8: =BB7 -> 12 | BE8: =BE7& TEXT(BC7,"0,0") -> angle of moving point= 34 | BJ8: X1Y1 | BK8: =AAA/COS(BK7) -> 9.183049604 | BL8: =BBB*TAN(BK7) -> 1.013550178 | BM8: =$CE$35 -> 287.2875661 | BN8: =SQRT(2*BM8/MASS)/SMIK -> 3.573280883 | BO8: =taNFq -> 2.796383082 | BP8: =ATAN(BO10) -> -0.3434335633 | BQ8: =BK8 -> 9.183049604 | BR8: =BL8 -> 1.013550178 | BS8: =BQ9-BQ8 -> -3.952687008 | BT8: =BN8*COS(BO9) -> 1.203202742 | BU8: =BN8*SIN(BO9) -> 3.364615793 | BY8: =ENERELAST -> -560 | CC8: S=SQRT(m/Kvo²+a²) | CH8: =CCC -> 10.29563014 | CJ8: =CH8^2 -> 106 | CM8: c | CO8: x | CP8: y | CQ8: pot | CR8: kin | CT8: f | CU8: vx | CV8: vy | CY8: x | CZ8: y | DA8: pot | DB8: kin | DD8: f | DE8: vx | DF8: vy | DG8: L | DI8: x | DJ8: y | DK8: pot | DL8: kin | DN8: f | DO8: vx | DP8: vy | DQ8: L | EA8: KEIMENO1
A9: =-PI()/2 -> -1.570796327 | B9: =AAA*COS(A9) -> 5.513168047e-16 | C9: =BBB*SIN(A9) -> -5 | F9: conjhyp | I9: =20 -> 20 | J9: =TAN(psi)*I9 -> 35.00791247 | L9: 3 | M9: MHNYMA3 | N9: ZR the velocity at P | Q9: =rx -> 8.090711791 | R9: 9 | S9: =ry -> -0.7770853179 | T9: 0.5 | AA9: GX | AB9: =AB7*COS(phi) -> -9.490711791 | AC9: =-AB9 -> 9.490711791 | AD9: PX | AE9: PC²/CD² | AF9: =((PX)^2+PY^2)/(DX^2+DY^2) -> 2.518680833 | AG9: GV∙PV= | AH9: =SQRT((GX-VX)^2+(GY-VY)^2)*SQRT((PX-VX)^2+(PY-VY)^2) ->  | AI9: line | AJ9: HI | AK9: FIND I AS CUT OF LINE SP AND LINE HI // TO DK | AP9: IX | AQ9: IY | AR9: =1/(AAA-CCC) -> -0.7718252056 | BA9: VIMATA = | BB9: 10 | BC9: 0 | BE9: s='STEP = '& | BH9: CONJUGATE DIAMETERS | BJ9: X2Y2 | BK9: =BK8+SIGN(BL8)*BN8*COS(BO9) -> 10.38625235 | BL9: =BL8+(BO8)*(BK9-BK8) -> 4.37816597 | BM9: SIGNX | BN9: =SIGN(BK9-BK8) -> 1 | BO9: =ATAN(BO8) -> 1.227362764 | BP9: =ATAN(BO8) -> 1.227362764 | BQ9: =IF(vimata>0,$CB$21,BQ8) -> 5.230362597 | BR9: =IF(vimata>0,BR8+TAN(BP8)*(BQ9-BQ8),BR8) -> 2.427050006 | BS9: =(BQ9-BQ8)*(BK9-BK8)+(BR9-BR8)*(BL9-BL8) -> 0 | BT9: =1/BN8*1*COS(BP8)*ddd_2 -> 7.905374016 | BU9: =1/BN8*1*SIN(BP8)*ddd_2 -> -2.826999658 | BY9: =1/2*STATHAPOSI*SMAX^2 -> 2714225.087 | CC9: =1/2*MASS*VAPEIRO^2 -> 3723.213425 | CF9: EPILOGI | CG9: =EPILOGI -> 2 | CH9: =AAA -> 9 | CI9: =BBB -> 5 | CN9: =1 -> 1 | CO9: =CN9*AAA -> 9 | CP9: =BBB*SQRT(CO9^2/AAA^2-1) -> 0 | CQ9: =-STATHEL*((CO9)^2+CP9^2)/2 -> -810 | CR9: =ENERELAST-CQ9 -> 250 | CS9: =SQRT(2*CR9/MASS) -> 10 | CT9: =PI()/2 -> 1.570796327 | CU9: =$CS9*COS($CT9) -> 6.125742275e-16 | CV9: =SIN($CT9)*$CS9 -> 10 | CW9: =($CO9)*$CV9-$CP9*$CU9 -> 90 | CX9: =1 -> 1 | CY9: =CX9*AAA -> 9 | CZ9: =BBB*SQRT(CY9^2/AAA^2-1) -> 0 | DA9: =STATHAPOSI/SQRT((CY9+CCC)^2+CZ9^2) -> 3473.213425 | DB9: =ENERGIAPS-DA9 -> 250 | DC9: =SQRT(2*DB9/MASS) -> 10 | DD9: =PI()/2 -> 1.570796327 | DE9: =DC9*COS(DD9) -> 6.125742275e-16 | DF9: =SIN(DD9)*DC9 -> 10 | DG9: =(CY9+CCC)*DF9-CZ9*DE9 -> 192.9563014 | DH9: =1 -> 1 | DI9: =DH9*AAA -> 9 | DJ9: =BBB*SQRT(DI9^2/AAA^2-1) -> 0 | DK9: =STATHELXI/SQRT((DI9-CCC)^2+DJ9^2) -> 233.2134254 | DL9: =ENERGELXI+DK9 -> 250 | DM9: =SQRT(2*DL9/MASS) -> 10 | DN9: =PI()/2 -> 1.570796327 | DO9: =DM9*COS(DN9) -> 6.125742275e-16 | DP9: =SIN(DN9)*DM9 -> 10 | DQ9: =(DI9-CCC)*DP9-DJ9*DO9 -> -12.95630141 | DT9: KEIMENO2 | DU9: =IF(EPILOGI=2, $DU$5 & $DU$6&$DU$7,"Z") -> IN THE CASE OF REPULSIVE FORCE FROM SIMILAR TRIANGLES AND PARALLELS:ST/TD=SP:/pD=SP/(K/V1)=SP"·V1/K ST/TD=ST'/DT'=ST/(K/V2)=ST'·V2/KSV/VE=SR'/ER"=SR'/(K/V3) SV/VE=ST/V'E=ST/T"D=ST/T'V=ST·V2/K | DV9: =IF(EPILOGI=2,$DV$6&$DV$7,"Z") -> so ST'·V2=SP"·V1=SR'·V3 .Each product expresses the law of areas for each points. so the law oa areaas is valid for the case of the repulsive force | DW9: -1 | DX9: -7 | EA9: -20 | EB9: -8
A10: =A9+PI()/100 -> -1.5393804 | B10: 0.2826968317 | C10: -4.997532802 | I10: =-PI() -> -3.141592654 | J10: =10*COS($I10) -> -10 | K10: =10*SIN($I10) -> -1.225148455e-15 | L10: 4 | M10: MHNYMA4 | N10: RQ the deviation due to the force | R10: =qx ->  | S10: 10 | T10: =qy ->  | U10: =qy-1 ->  | AA10: GY | AB10: =AB7*SIN(phi) -> -1.673468555 | AC10: =-AB10 -> 1.673468555 | AD10: PY | AE10: EP²/PF² | AF10: =((EX-PX)^2+(EY-PY)^2)/((PX-fx)^2+(PY-fy)^2) -> 1.474964292 | AG10: PV∙L= | AH10: =L*SQRT((PX-VX)^2+(PY-VY)^2) ->  | AI10: Y=TANSP*(X-CCC) | AK10: TANSP*(X-CCC)=TAN(PSI)*(X+CCC) | AP10: =CCC*(TANSP+TAN(psi))/(TANSP-TAN(psi)) -> 0.8836108415 | AQ10: =TAN(psi)*(AP10+CCC) -> 19.56809449 | AR10: =1/(AAA+CCC) -> 0.05182520564 | BA10: =CCC -> 10.29563014 | BB10: =2*BBB -> 10 | BC10: =BA9&TEXT(vimata,"0") -> VIMATA = 8 | BE10: SMIK | BF10: 3 | BH10: A | BI10: 9 | BJ10: X3Y3 | BK10: =BK9+BQ11 -> 10.49867117 | BL10: =BL9+BR11 -> 3.994288375 | BM10: SIGNY | BN10: =SIGN(BL9-BL8) -> 1 | BO10: =taNprpQ -> -0.3576047954 | BP10: =TAN(BP8) -> -0.3576047954 | BQ10: x | BR10: y | BT10: =BT9*BT8 -> 9.511767694 | BU10: =BU9*BU8 -> -9.511767694 | CB10: aktin | CC10: =BBB^2/AAA -> 2.777777778 | CF10: =1/2*MASS*VAPEIRO^2 -> 3723.213425 | CH10: =CH9^2 -> 81 | CI10: =CI9^2 -> 25 | CJ10: =CI10+CH10 -> 106 | CN10: =CN9+0.5 -> 1.5 | CO10: 13.5 | CP10: 5.590169944 | CQ10: -2135 | CR10: 1575 | CS10: 25.0998008 | CT10: =ATAN(BBB^2*$CO10/(AAA^2*$CP10)) -> 0.6405223127 | CU10: =$CS10*COS($CT10) -> 20.1246118 | CV10: =SIN($CT10)*$CS10 -> 15 | CW10: =($CO10)*$CV10-$CP10*$CU10 -> 90 | CX10: =CX9+0.5 -> 1.5 | CY10: 13.5 | CZ10: 5.590169944 | DA10: 2741.751053 | DB10: 981.462372 | DC10: 19.81375655 | DD10: =ATAN(BBB^2*$CO10/(AAA^2*$CP10)) -> 0.6405223127 | DE10: =DC10*COS(DD10) -> 15.88634755 | DF10: =SIN(DD10)*DC10 -> 11.84098435 | DG10: 192.9563014 | DH10: =DH9+0.5 -> 1.5 | DI10: 13.5 | DJ10: 5.590169944 | DK10: 46.89391052 | DL10: 63.68048514 | DM10: 5.04699852 | DN10: =ATAN(BBB^2*$CO10/(AAA^2*$CP10)) -> 0.6405223127 | DO10: =DM10*COS(DN10) -> 4.046601277 | DP10: =SIN(DN10)*DM10 -> 3.016158511 | DQ10: -12.95630141 | DW10: -1 | DX10: -9 | EA10: -20 | EB10: -11
A11: =A10+PI()/100 -> -1.507964474 | B11: 0.5651146758 | C11: -4.990133642 | D11: =IF(ABS(COS(A11))>0.0000000001,AAA/COS(A11),D10) -> 143.33374 | G11: =IF(ABS(COS($A11))>0.0001,BBB/COS(A11),G10) -> 79.62985555 | I11: =I10+PI()/60 -> -3.089232776 | J11: =10*COS($I11) -> -9.986295348 | K11: =10*SIN($I11) -> -0.5233595624 | L11: 5 | M11: ="MHNYMA"&TEXT(L11,"0") -> MHNYMA5 | N11: Draw SP cutting the diameter DK in E, and the ordinate Qv in xand complete the parallelogram QRPx. | Y11: =CCC+2 -> 12.29563014 | Z11: 1 | AA11: -6 | AB11: -7 | AE11: QV²/QT² | AF11: =((qx-VX)^2+(qy-VY)^2)/((qx-tx)^2+(qy-ty)^2) ->  | AG11: AC/PC | AH11: =AAA/SQRT((PX)^2+(PY)^2) -> 0.933888835 | AI11: Y=TAN(PSI)*(X+CCC) | AK11: X(TANSP-TAN(PSI))=CCC*(TANSP+TAN(PSI)) | AP11: =-CCC -> -10.29563014 | AQ11: 0 | BA11: =CCC -> 10.29563014 | BB11: =BB10 -> 10 | BH11: B | BI11: 5 | BJ11: X4Y4 | BK11: =BK9+BQ12 -> 10.05590238 | BL11: =BL9+BR12 -> 4.152624615 | BM11: F | BN11: =-BO9 -> -1.227362764 | BO11: =-BN9*DAA*COS(PI()/5) -> -0.3236067977 | BP11: =-BN10*DAA*SIN(PI()/5) -> -0.2351141009 | BQ11: =BO11*COS(BN11)+BP11*SIN(BN11) -> 0.1124188228 | BR11: =-BO11*SIN(BN11)+BP11*COS(BN11) -> -0.3838775954 | CN11: =CN10+0.5 -> 2 | CO11: 18 | CP11: 8.660254038 | CQ11: -3990 | CR11: 3430 | CS11: 37.04051835 | CT11: 0.57037681 | CU11: 31.17691454 | CV11: 20 | CW11: 90 | CX11: =CX10+0.5 -> 2 | CY11: 18 | CZ11: 8.660254038 | DA11: 2264.784974 | DB11: 1458.428451 | DC11: 24.15308221 | DD11: 0.57037681 | DE11: 20.32959077 | DF11: 13.04143856 | DG11: 192.9563014 | DH11: =DH10+0.5 -> 2 | DI11: 18 | DJ11: 8.660254038 | DK11: 26.06777312 | DL11: 42.85434774 | DM11: 4.140258337 | DN11: 0.57037681 | DO11: 3.484845409 | DP11: 2.235529372 | DQ11: -12.95630141
A12: =A11+PI()/100 -> -1.476548547 | B12: 0.8469748199 | C12: -4.977809823 | D12: 95.63448417 | E12: =IF(ABS(COS(A12))>0.0000000001,BBB*TAN(A12),E11) -> -52.89447497 | F12: =IF(ABS(COS(A12))>0.001,AAA*TAN(A12),F11) -> -95.21005494 | G12: 53.13026898 | I12: =I11+PI()/60 -> -3.036872898 | J12: -9.945218954 | K12: -1.045284633 | L12: 6 | M12: MHNYMA6 | N12: EP =a because the tangent ZR is bisector of the angle HPS and so angle IPZ=angle RPS= angle HPR | AA12: FIND THE CUT OF THE OTHER DIAMETER WITH THE RED HYPERBOLA | AE12: QX²/QT² | AF12: =((qx-XX)^2+(qy-XY)^2)/((qx-tx)^2+(qy-ty)^2) ->  | AG12: PE/PC | AH12: =SQRT((PX-EX)^2+(PY-EY)^2)/SQRT((PX)^2+(PY)^2) -> 0.933888835 | AI12: FIND DK | AP12: IH | BH12: C | BI12: =SQRT(AAA^2+BBB^2) -> 10.29563014 | BJ12: X5Y5 | BK12: =BK9 -> 10.38625235 | BL12: =BL9 -> 4.37816597 | BM12: =BK7 -> 0.2 | BO12: =BO11 -> -0.3236067977 | BP12: =-BP11 -> 0.2351141009 | BQ12: =BO12*COS(BN11)+BP12*SIN(BN11) -> -0.3303499618 | BR12: =-BO12*SIN(BN11)+BP12*COS(BN11) -> -0.2255413548 | BW12: stathera | BX12: =IF(EPILOGI=1,STATHELXI,IF(EPILOGI=2,STATHAPOSI,STATHEL)) -> 67017.84166 | BZ12: =SQRT((S_3X-RTT_X)^2+(S_3Y-RTT_Y)^2) -> 11.68722933 | CA12: =VELOCITY3*BZ12 -> 192.9563014 | CD12: rc | CN12: 2.5 | CO12: 22.5 | CP12: 11.45643924 | CQ12: -6375 | CR12: 5815 | CS12: 48.22862221 | CT12: 0.5449371949 | CU12: 41.24318125 | CV12: 25 | CW12: 90 | CX12: 2.5 | CY12: 22.5 | CZ12: 11.45643924 | DA12: 1929.177475 | DB12: 1794.035951 | DC12: 26.78832545 | DD12: 0.5449371949 | DE12: 22.90830033 | DF12: 13.8861138 | DG12: 192.9563014 | DH12: 2.5 | DI12: 22.5 | DJ12: 11.45643924 | DK12: 18.05107731 | DL12: 34.83765193 | DM12: 3.732969431 | DN12: 0.5449371949 | DO12: 3.192285572 | DP12: 1.935038396 | DQ12: -12.95630141 | DU12: =IF(EPILOGI=3,$DV$12&$DV$13&$DV$14&$DV$15,"X") -> X | DV12: Triangle SP'T similar to TDP" so ST/TD=SP'/DP" =SP'/(K/V1)=SP'·V1/K
A13: =A12+PI()/100 -> -1.445132621 | B13: 1.127999102 | C13: -4.960573507 | D13: 71.8085678 | E13: -39.57907544 | F13: -71.24233579 | G13: 39.89364878 | I13: -2.984513021 | J13: -9.876883406 | K13: -1.56434465 | L13: 7 | M13: MHNYMA7 | N13: IP=HP and EP= ES-SP = 1/2·IS-SP=1/2(IP+SP)-SP = 1/2(HP-SP) = a | U13: 1 | V13: 2 | W13: -10.5 | X13: -14 | Z13: B | AD13: L | AE13: QR/PV | AF13: =SQRT((qx-rx)^2+(qy-ry)^2)/SQRT((PX-VX)^2+(PY-VY)^2) ->  | AG13: PX/PV | AH13: =SQRT((PX-XX)^2+(PY-XY)^2)/SQRT((PX-VX)^2+(PY-VY)^2) ->  | AI13: y^2/b^2-x^2/a^2=1 | AK13: x^2*(tanpxi^2/b^2-1/a^2)=1 | BF13: Fi3 | BG13: 35 | BH13: DDD_2 | BI13: 30 | BJ13: FI3 | BK13: 0.66 | BL13: -28 | BM13: kin energy | BO13: TAN | BP13: perp | BQ13: perp1 | BW13: energia | BX13: =IF(EPILOGI=1,ENERGELXI,IF(EPILOGI=2,ENERGIAPS,ENERELAST)) -> 3723.213425 | BZ13: =SQRT((S_3X-PTTX)^2+(S_3Y-PTTY)^2) -> 15.40175643 | CA13: =VELOCITY1*BZ13 -> 323.2936974 | CD13: =BQ14 -> 11.39251709 | CE13: =BR14 -> 3.880524564 | CN13: 3 | CO13: 27 | CP13: 14.14213562 | CQ13: -9290 | CR13: 8730 | CS13: 59.09314681 | CT13: 0.5324817836 | CU13: 50.91168825 | CV13: 30 | CW13: 90 | CX13: 3 | CY13: 27 | CZ13: 14.14213562 | DA13: 1680.197201 | DB13: 2043.016224 | DC13: 28.58682371 | DD13: 0.5324817836 | DE13: 24.62897197 | DF13: 14.51276091 | DG13: 192.9563014 | DH13: 3 | DI13: 27 | DJ13: 14.14213562 | DK13: 13.80544871 | DL13: 30.59202333 | DM13: 3.498115112 | DN13: 0.5324817836 | DO13: 3.013800341 | DP13: 1.775898882 | DQ13: -12.95630141 | DS13: -15 | DT13: -7 | DU13: -5 | DV13: Triangle STT similar to TT"D" so ST/TD=ST'/DT" =ST'/(K/V2)=ST'·V2/K
A14: =A13+PI()/100 -> -1.413716694 | B14: 1.407910185 | C14: -4.938441703 | D14: 57.53207899 | E14: -31.56875757 | F14: -56.82376363 | G14: 31.96226611 | I14: -2.932153143 | J14: -9.781476007 | K14: -2.079116908 | L14: 8 | M14: MHNYMA8 | N14: Draw QT perpendicular to SP; and putting L for the principal latus rectum of the hyperbola (that is, for 2BC²/AC), | U14: 8 | V14: 9 | W14: -16 | X14: -15 | Z14: =0 -> 0 | AA14: =BBB -> 5 | AB14: L | AC14: 2*BC^2/AC | AD14: =2*BBB^2/AAA -> 5.555555556 | AE14: PX/PV | AF14: =SQRT((PX-XX)^2+(PY-XY)^2)/SQRT((PX-VX)^2+(PY-VY)^2) ->  | AG14: SINCE QR=PX | AI14: y=tancpsi*x | AK14: xk | AL14: =1/SQRT(TAN(psi)^2/BBB^2-1/AAA^2) -> 3.012243399 | AM14: =AL14*TAN(psi) -> 5.272617661 | AP14: LINE | AQ14: SPI | AS14: DAA | AT14: 0.4 | BH14: kk | BI14: 45 | BJ14: X1Y1 | BK14: =AAA/COS(BK13) -> 11.39251709 | BL14: =BBB*TAN(BK13) -> 3.880524564 | BM14: =KIN3_ -> 681.4512759 | BN14: =SQRT(2*BM14/MASS)/SMIK -> 5.503337476 | BO14: =taNFR -> 0.9061169233 | BP14: =ATAN(BO16) -> -0.8346119699 | BQ14: =IF(vimata>0,BK14,BK14+1000) -> 11.39251709 | BR14: =IF(vimata>0,BL14,BL14+1000) -> 3.880524564 | BS14: =BQ15-BQ14 -> -1.830158373 | BT14: =BN14*COS(BO15) -> 4.078171293 | BU14: =BN14*SIN(BO15) -> 3.695300025 | BV14: =EPILOGI -> 2 | BZ14: =SQRT((S_3X-TTT_X)^2+(S_3Y-TTT_Y)^2) -> 17.99991919 | CA14: =VELOCITY2*BZ14 -> 192.9563014 | CD14: =BQ15 -> 9.562358719 | CE14: =BR15 -> 5.900306257 | CN14: 3.5 | CO14: 31.5 | CP14: 16.77050983 | CQ14: -12735 | CR14: 12175 | CS14: 69.78538529 | CT14: 0.5253752436 | CU14: 60.37383539 | CV14: 35 | CW14: 90 | CX14: 3.5 | CY14: 31.5 | CZ14: 16.77050983 | DA14: 1488.137669 | DB14: 2235.075756 | DC14: 29.90033951 | DD14: 0.5253752436 | DE14: 25.86785425 | DF14: 14.99614681 | DG14: 192.9563014 | DH14: 3.5 | DI14: 31.5 | DJ14: 16.77050983 | DK14: 11.17668337 | DL14: 27.96325799 | DM14: 3.34444363 | DN14: 0.5253752436 | DO14: 2.893397928 | DP14: 1.677364488 | DQ14: -12.95630141 | DS14: -15 | DT14: -8 | DV14: TRIANGLE ST'V similar to VEV' so SV/VE=ST'/VE=ST'·V2/K
A15: -1.382300768 | B15: 1.686431831 | C15: -4.911436254 | D15: 48.03040271 | E15: -26.21091791 | F15: -47.17965223 | G15: 26.68355706 | I15: -2.879793266 | J15: -9.659258263 | K15: -2.588190451 | L15: 9 | M15: MHNYMA9 | N15: L · QR/(L · Pv) = QR / Pv= Px/ Pv, that is (because of the similar triangles PXZ, PEC), PE /PC =a/PC=AC/ PC | U15: -11 | V15: -3 | W15: -12 | X15: -14 | Z15: 0 | AA15: 0 | AC15: QR/QT² | AD15: =SQRT((qx-rx)^2+(qy-ry)^2)/((qx-tx)^2+(qy-ry)^2) ->  | AE15: L/ | AG15: PE=AC | AH15: AC²/BC² | AI15: =AAA^2/BBB^2 -> 3.24 | AK15: xd | AL15: =-AL14 -> -3.012243399 | AM15: =AL15*TAN(psi) -> -5.272617661 | AO15: SPI | AP15: =CCC -> 10.29563014 | AQ15: 0 | BH15: mm | BI15: 30 | BJ15: X2Y2 | BK15: =BK14+SIGN(BL14)*BN14*COS(BO15) -> 15.47068839 | BL15: =BL14+(BO14)*(BK15-BK14) -> 7.575824589 | BM15: SIGNX | BN15: =SIGN(BK15-BK14) -> 1 | BO15: =ATAN(BO14) -> 0.7361843568 | BP15: =ATAN(BO14) -> 0.7361843568 | BQ15: =IF(vimata>0,$CB$22,BQ14) -> 9.562358719 | BR15: =IF(vimata>0,BR14+TAN(BP14)*(BQ15-BQ14),BR14) -> 5.900306257 | BS15: =(BQ15-BQ14)*(BK15-BK14)+(BR15-BR14)*(BL15-BL14) -> 0 | BT15: =1/BN14*1*COS(BP14)*ddd_2 -> 3.660316746 | BU15: =1/BN14*1*SIN(BP14)*ddd_2 -> -4.039563385 | BV15: potential | BW15: =IF(EPILOGI=1,-stathe/SQRT((xp-CCC)^2+(yp_)^2),IF(EPILOGI=2,stathe/SQRT((xp+CCC)^2+(yp_)^2),-stathe*(xp^2+yp_^2)/2)) -> 2621.689377 | BX15: =IF(EPILOGI=1,-stathe/SQRT((XQ-CCC)^2+(YQ)^2),IF(EPILOGI=2,stathe/SQRT((XQ+CCC)^2+(YQ)^2),-stathe*(XQ^2+YQ^2)/2)) -> 3435.925859 | BY15: =IF(EPILOGI=1,-stathe/SQRT((XR-CCC)^2+(YR)^2),IF(EPILOGI=2,stathe/SQRT((XR+CCC)^2+(YR)^2),-stathe*(XR^2+YR^2)/2)) -> 3041.762149 | CA15: XP | CB15: =AAA/COS(fi_1) -> 14.47853229 | CC15: YP_ | CD15: =BBB*TAN(fi_1) -> -6.300791088 | CE15: YP | CG15: STATHERA | CH15: STATH2 | CI15: STATH2 | CJ15: mass | CK15: mass | CN15: 4 | CO15: 36 | CP15: 19.36491673 | CQ15: -16710 | CR15: 16150 | CS15: 80.37412519 | CT15: 0.5209134061 | CU15: 69.71370023 | CV15: 40 | CW15: 90 | CX15: 4 | CY15: 36 | CZ15: 19.36491673 | DA15: 1335.481775 | DB15: 2387.73165 | DC15: 30.90457345 | DD15: 0.5209134061 | DE15: 26.80554425 | DF15: 15.38035948 | DG15: 192.9563014 | DH15: 4 | DI15: 36 | DJ15: 19.36491673 | DK15: 9.388896143 | DL15: 26.17547077 | DM15: 3.235767035 | DN15: 0.5209134061 | DO15: 2.806590959 | DP15: 1.610352599 | DQ15: -12.95630141 | DU15: =IF(EPILOGI=3,$DV$16&$DV$17,"X") -> X | DV15: Triangle SRV similar to VER" SV/VE=SR'/ER=SR'·V3/K
A16: -1.350884841 | B16: 1.963289173 | C16: -4.87958381 | D16: 41.25729471 | E16: -22.36871415 | F16: -40.26368546 | G16: 22.92071929 | I16: -2.827433388 | J16: -9.510565163 | K16: -3.090169944 | L16: 10 | M16: MHNYMA10 | N16: CV²/CP²-QV²/CD²=1 and since CV=CP+PV (CP²+PV²+2CP·PV)/CP²-QV²/CD²=1 | U16: -17 | V16: -3 | W16: 16 | X16: 13 | AA16: X²/A²-Y²/B²=-1 | AC16: QX²/QT²= | AD16: =((qx-XX)^2+(qy-XY)^2)/((qx-tx)^2+(qy-ty)^2) ->  | AF16: BA | AI16: PC²/CD² | AK16: DK | AP16: =AP10 -> 0.8836108415 | AQ16: =AQ10 -> 19.56809449 | BJ16: X3Y3 | BK16: =BK15+BQ17 -> 15.38875505 | BL16: =BL15+BR17 -> 7.184305844 | BM16: SIGNY | BN16: =SIGN(BL15-BL14) -> 1 | BO16: =taNprpR -> -1.103610334 | BP16: =TAN(BP14) -> -1.103610334 | BQ16: x | BR16: y | BT16: =BT15*BT14 -> 14.92739868 | BU16: =BU15*BU14 -> -14.92739868 | BV16: kinetic | BW16: =energia-BW15 -> 1101.524048 | BX16: =energia-BX15 -> 287.2875661 | BY16: =energia-BY15 -> 681.4512759 | CA16: XQ | CB16: =AAA/COS(fi_2) -> 9.183049604 | CD16: =YQ -> 1.013550178 | CE16: YQ | CG16: =STATHERA -> 40.99684401 | CH16: =STATH2 -> 7 | CI16: =STATH22 -> -363.7192302 | CJ16: =MASS -> 5 | CK16: =mass_2 -> 3 | CN16: 4.5 | CO16: 40.5 | CP16: 21.93741097 | CQ16: -21215 | CR16: 20655 | CS16: 90.89554445 | CT16: 0.5179197365 | CU16: 78.97467949 | CV16: 45 | CW16: 90 | CX16: 4.5 | CY16: 40.5 | CZ16: 21.93741097 | DA16: 1211.231432 | DB16: 2511.981993 | DC16: 31.6984668 | DD16: 0.5179197365 | DE16: 27.54124276 | DF16: 15.69307951 | DG16: 192.9563014 | DH16: 4.5 | DI16: 40.5 | DJ16: 21.93741097 | DK16: 8.094176976 | DL16: 24.8807516 | DM16: 3.154726714 | DN16: 0.5179197365 | DO16: 2.74098728 | DP16: 1.561822452 | DQ16: -12.95630141 | DS16: -2 | DT16: -8 | DV16: From the 4 equalities we get SP'·V1=ST'·V2=SR'·V3
A17: -1.319468915 | B17: 2.238208984 | C17: -4.842915806 | D17: 36.1896501 | E17: -19.47371427 | F17: -35.05268569 | G17: 20.10536117 | I17: -2.775073511 | J17: -9.335804265 | K17: -3.583679495 | L17: 11 | M17: MHNYMA11 | N17: 1+PV²/CP²+2CP·PV/CP²-QV²/CD²=1 or since 2CP=GP -PV²/CP²+GP·VP/CP²=QV²/CD² | AA17: FOR X-0 | AC17: CA²/PF² | AD17: =AAA^2/((PX-fx)^2+(PY-fy)^2) -> 1.474964292 | AF17: =-AAA -> -9 | AG17: 0 | AJ17: cea | AK17: =0 -> 0 | AL17: 0 | AZ17: charwidth | BA17: 88.3 | BB17: yaxis | BC17: 10 | BE17: gonia | BJ17: X4Y4 | BK17: =BK15+BQ18 -> 15.07301314 | BL17: =BL15+BR18 -> 7.532761879 | BM17: F | BN17: =-BO15 -> -0.7361843568 | BO17: =-BN15*DAA*COS(PI()/5) -> -0.3236067977 | BP17: =-BN16*DAA*SIN(PI()/5) -> -0.2351141009 | BQ17: =BO17*COS(BN17)+BP17*SIN(BN17) -> -0.08193333806 | BR17: =-BO17*SIN(BN17)+BP17*COS(BN17) -> -0.3915187455 | BV17: velocity | BW17: =SQRT(2*BW16/MASS) -> 20.99070316 | BX17: =SQRT(2*BX16/MASS) -> 10.71984265 | BY17: =SQRT(2*BY16/MASS) -> 16.51001243 | CA17: XR | CB17: =AAA/COS(fi_3) -> 11.39251709 | CD17: =BBB*TAN(fi_3) -> 3.880524564 | CE17: YR | CN17: 5 | CO17: 45 | CP17: 24.49489743 | CQ17: -26250 | CR17: 25690 | CS17: 101.3706072 | CT17: 0.5158099975 | CU17: 88.18163074 | CV17: 50 | CW17: 90 | CX17: 5 | CY17: 45 | CZ17: 24.49489743 | DA17: 1108.133117 | DB17: 2615.080308 | DC17: 32.34241987 | DD17: 0.5158099975 | DE17: 28.13446033 | DF17: 15.95256296 | DG17: 192.9563014 | DH17: 5 | DI17: 45 | DJ17: 24.49489743 | DK17: 7.113265012 | DL17: 23.89983963 | DM17: 3.091914594 | DN17: 0.5158099975 | DO17: 2.689636361 | DP17: 1.525054786 | DQ17: -12.95630141 | DS17: -2 | DT17: -9 | DV17: which means that the law of equal areas is valid for the center C
A18: -1.288052988 | B18: 2.510919954 | C18: -4.801468428 | D18: 32.25909287 | E18: -17.21011288 | F18: -30.97820319 | G18: 17.92171826 | I18: -2.722713633 | J18: -9.135454576 | K18: -4.067366431 | L18: 12 | M18: MHNYMA12 | N18: GV·VP/CP²=QV²/CD² and QT/QX=PF/PE=PF/AC QT= QX·PF/(PF·CD/BC) = QX·BC/CD = in the limit QV·BC/CD | U18: -29 | V18: -29 | W18: 12 | X18: -17 | AA18: Y=±B | AB18: B=BHYP | AC18: CONJ DIAM2 | AF18: =AAA -> 9 | AG18: 0 | AI18: TANSP | AJ18: =(PY-0)/(PX-CCC) -> -2.0790538 | AK18: =EX -> 5.589620491 | AL18: =EY -> 9.784047244 | AZ18: charheight | BA18: 56 | BB18: xaxis | BC18: =INT(yaxis*charwidth/charheight) -> 15 | BH18: 91 | BJ18: X5Y5 | BK18: =BK15 -> 15.47068839 | BL18: =BL15 -> 7.575824589 | BM18: =BK13 -> 0.66 | BO18: =BO17 -> -0.3236067977 | BP18: =-BP17 -> 0.2351141009 | BQ18: =BO18*COS(BN17)+BP18*SIN(BN17) -> -0.3976752481 | BR18: =-BO18*SIN(BN17)+BP18*COS(BN17) -> -0.04306271092 | BU18: tanfp | BV18: =(BBB / AAA) / SIN(fi_1) -> -0.7092256741 | BW18: TanpRpp = -1 / tanFP | BX18: =-1/tanfp -> 1.409988437 | CG18: LINE AD | CH18: ay | CI18: LINE CE | CK18: LINE EBD | CN18: 5.5 | CO18: 49.5 | CP18: 27.04163457 | CQ18: -31815 | CR18: 31255 | CS18: 111.8123428 | CT18: 0.5142656364 | CU18: 97.34988444 | CV18: 55 | CW18: 90 | CX18: 5.5 | CY18: 49.5 | CZ18: 27.04163457 | DA18: 1021.209225 | DB18: 2702.0042 | DC18: 32.87554836 | DD18: 0.5142656364 | DE18: 28.62323384 | DF18: 16.17133775 | DG18: 192.9563014 | DH18: 5.5 | DI18: 49.5 | DJ18: 27.04163457 | DK18: 6.344403484 | DL18: 23.13097811 | DM18: 3.041774358 | DN18: 0.5142656364 | DO18: 2.648333581 | DP18: 1.496235438 | DQ18: -12.95630141
A19: -1.256637061 | B19: 2.781152949 | C19: -4.755282581 | D19: 29.1246118 | E19: -15.38841769 | F19: -27.69915183 | G19: 16.18033989 | I19: -2.670353756 | J19: -8.910065242 | K19: -4.539904997 | L19: 13 | M19: MHNYMA13 | N19: L·QR/QT²=L·PV·AC/PC/(QV²·BC²/CD²)=L·PV·CD²·AC/PC/(QV²·BC²) | U19: -29 | V19: -29 | W19: 5 | X19: -12 | AB19: X2 | AC19: =BHYP*COS(psi) -> 3.012243399 | AD19: =-BHYP*COS(psi) -> -3.012243399 | AF19: C | AI19: point E | AJ19: CUT OF SP WITH DK | AL19: E | AN19: perpendicular PF | AP19: Y=PY-1/TAN(PSI)*(FX-PX) | AZ19: elastic force | BB19: MQ | BC19: =ry-TANTHETA*rx -> 0 | BG19: gonia | BH19: =BH18-90 -> 1 | BI19: =RADIANS(BH19) -> 0.01745329252 | BU19: taNFq | BV19: =(BBB / AAA) / SIN(fi_2) -> 2.796383082 | BW19: taNprpQ | BX19: =-1 / taNFq -> -0.3576047954 | CB19: =ATAN(taNprpR) -> -0.8346119699 | CD19: =kk -> 45 | CG19: =IF(vimata>1,$CB$20,$CB$20+1000) -> 13.23833628 | CH19: =IF(vimata>1,$CD$20,$CD$20+1000) -> -8.049453132 | CI19: =IF(vimata>1,CX,CX+1000) -> 9.562358719 | CJ19: =IF(vimata>1,XE,XE+1000) -> 4.991222333 | CK19: =IF(vimata>1,BX,BX+1000) -> 5.230362597 | CL19: =IF(vimata>1,XED,XED+1000) -> 3.861971843 | CN19: =CN18+0.5 -> 6 | CO19: 54 | CP19: 29.58039892 | CQ19: -37910 | CR19: 37350 | CS19: 122.2292927 | CT19: 0.5131003315 | CU19: 106.4894361 | CV19: 60 | CW19: 90 | CX19: 6 | CY19: 54 | CZ19: 29.58039892 | DA19: 946.9303583 | DB19: 2776.283067 | DC19: 33.32436386 | DD19: 0.5131003315 | DE19: 29.03307903 | DF19: 16.35828685 | DG19: 192.9563014 | DH19: 6 | DI19: 54 | DJ19: 29.58039892 | DK19: 5.725539053 | DL19: 22.51211368 | DM19: 3.00080747 | DN19: 0.5131003315 | DO19: 2.614383902 | DP19: 1.473038452 | DQ19: -12.95630141
A20: -1.225221135 | B20: 3.048641282 | C20: -4.704403845 | D20: 26.56921314 | E20: -13.88803427 | F20: -24.99846169 | G20: 14.76067396 | I20: -2.617993878 | J20: -8.660254038 | K20: -5 | L20: 14 | M20: MHNYMA14 | N20: L·PV·CD²·AC/PC/(QV²·BC²)= L·PV·CD²·AC/PC/(GV·VP·CD²/CP²)= 2BC²·PC/(2PC·BC²)=1 | U20: -29 | V20: -29 | W20: -1 | X20: -6 | AB20: Y2 | AC20: =BHYP*SIN(psi) -> 5.272617661 | AD20: =-BHYP*SIN(psi) -> -5.272617661 | AF20: 0 | AG20: 0 | AI20: Y=TANSP*(Ex-ccc) | AK20: Ex | AL20: =CCC*TANSP/(TANSP-TAN(psi)) -> 5.589620491 | AM20: =TANSP*(AL20-CCC) -> 9.784047244 | AN20: =PX -> 9.490711791 | AO20: =PY -> 1.673468555 | AP20: Y=TAN(PSI)*EX | AZ20: CR | BA20: =rx -> 8.090711791 | BB20: =ry -> -0.7770853179 | BU20: PerPrxP2 = xp + Sgn(xp) * 1 / VELOCITY1 * kk * Cos(Atn(TanpRpp)) | BY20: =IF(vimata>0,xp + SIGN(xp) * 1 / VELOCITY1 * kk * COS(ATAN(TanpRpp)),xp) -> 15.71872831 | BZ20: =IF(vimata>0,yp_ + TanpRpp * (AX - xp),yp_) -> -8.049453132 | CA20: AX | CB20: =xp + PROS * SIGN(xp) * 1 / VELOCITY1 * kk * COS(ATAN(TanpRpp)) -> 13.23833628 | CC20: AY | CD20: =yp_+TanpRpp*(AX-xp) -> -8.049453132 | CG20: =IF(vimata>1,$CB$23,CG19) -> 3.861971843 | CH20: =IF(vimata>1,$CD$23,CH19) -> -1.399494746 | CI20: =IF(vimata>1,CY,CY+1000) -> 5.900306257 | CJ20: =IF(vimata>1,YE,YE+1000) -> 1.758322218 | CK20: =IF(vimata>1,BY,BY+1000) -> 2.427050006 | CL20: =IF(vimata>1,YD,YE+1000) -> -1.399494746 | CN20: 6.5 | CO20: 58.5 | CP20: 32.11308145 | CQ20: -44535 | CR20: 43975 | CS20: 132.6272973 | CT20: 0.5121989497 | CU20: 115.6070932 | CV20: 65 | CW20: 90 | CX20: 6.5 | CY20: 58.5 | CZ20: 32.11308145 | DA20: 882.7243533 | DB20: 2840.489072 | DC20: 33.70750108 | DD20: 0.5121989497 | DE20: 29.3817811 | DF20: 16.51988402 | DG20: 192.9563014 | DH20: 6.5 | DI20: 58.5 | DJ20: 32.11308145 | DK20: 5.216678484 | DL20: 22.00325311 | DM20: 2.966698711 | DN20: 0.5121989497 | DO20: 2.585979065 | DP20: 1.453964758 | DQ20: -12.95630141
A21: -1.193805208 | B21: 3.313120974 | C21: -4.648882429 | D21: 24.44824702 | E21: -12.62855845 | F21: -22.73140521 | G21: 13.58235946 | I21: -2.565634 | J21: -8.386705679 | K21: -5.44639035 | L21: 15 | M21: MHNYMA15 | U21: -29 | V21: -29 | W21: -8 | X21: -6 | AF21: 0 | AG21: 0 | AI21: y=tan(psi)*Ex | AL21: =CCC -> 10.29563014 | AM21: 0 | AP21: FX*(1/TAN(PSI)+TAN(PSI))=PY+PX/TAN(PSI) | AZ21: TANTHETA | BA21: =BB20/BA20 -> -0.09604659491 | BC21: TANCD | BD21: =DY/DX -> 1.750395623 | BE21: 4 | BF21: 4 | BG21: 5 | BH21: 5 | BI21: 1 | BJ21: ="MHNYMA"&TEXT(BI21,"0") -> MHNYMA1 | BK21: F~QR/(PC²·QT²) | BU21: SAB | BV21: =BY - AY + AX * tanfp - BX * taNFq -> -13.53856231 | BY21: =IF(vimata>0,XQ + SIGN(XQ) * 1 / VELOCITY2 * kk * COS(ATAN(taNprpQ)),XQ) -> 13.13573661 | BZ21: =IF(vimata>0,YQ + taNprpQ * (BX - XQ),YQ) -> 2.427050006 | CA21: BX | CB21: =XQ + PROS * SIGN(XQ) * 1 / VELOCITY2 * kk * COS(ATAN(taNprpQ)) -> 5.230362597 | CC21: BY | CD21: =YQ + taNprpQ * (BX - XQ) -> 2.427050006 | CG21: D_3X | CH21: D_3Y | CI21: E_3X | CJ21: E_3Y | CN21: 7 | CO21: 63 | CP21: 34.64101615 | CQ21: -51690 | CR21: 51130 | CS21: 143.0104891 | CT21: 0.5114871245 | CU21: 124.7076581 | CV21: 70 | CW21: 90 | CX21: 7 | CY21: 63 | CZ21: 34.64101615 | DA21: 826.6723643 | DB21: 2896.541061 | DC21: 34.03845508 | DD21: 0.5114871245 | DE21: 29.68213063 | DF21: 16.66095872 | DG21: 192.9563014 | DH21: 7 | DI21: 63 | DJ21: 34.64101615 | DK21: 4.790885763 | DL21: 21.57746039 | DM21: 2.937853665 | DN21: 0.5114871245 | DO21: 2.561859992 | DP21: 1.438004707 | DQ21: -12.95630141
A22: -1.162389282 | B22: 3.574331016 | C22: -4.588773128 | D22: 22.66158328 | E22: -11.55431827 | F22: -20.79777288 | G22: 12.58976849 | I22: -2.513274123 | J22: -8.090169944 | K22: -5.877852523 | L22: 16 | M22: MHNYMA16 | AA22: Tangent 1 | AE22: rectangula | AF22: 1st tangent | AH22: QT | AI22: QT | AJ22: CUT OF Y=TANSP*(X-CCC) | AP22: FX | AQ22: =(PY+PX/TAN(psi))/(TAN(psi)+1/TAN(psi)) -> 3.056175143 | AR22: =AQ22*TAN(psi) -> 5.349515594 | AZ22: FIND QQ | BA22: ALFAQQ | BB22: =AAA^2*TANTHETA^2-BBB^2 -> -24.25277918 | BC22: TANQT | BD22: =-1/TANPC -> -5.67128182 | BE22: 2 | BF22: 2 | BG22: 2 | BH22: 2 | BI22: =BI21+1 -> 2 | BJ22: ="MHNYMA"&TEXT(BI22,"0") -> MHNYMA2 | BK22: GV·VP/CP²=QV²/CD² QV²=GV·VP·CD² /CP² | BU22: taNFR | BV22: =(BBB / AAA) / SIN(fi_3) -> 0.9061169233 | BW22: taNprpR | BX22: =-1 / taNFR -> -1.103610334 | BY22: =IF(vimata>0,XR + SIGN(XR) * 1 / VELOCITY3 * kk * COS(ATAN(taNprpR)),XR) -> 13.22267547 | BZ22: =IF(vimata>0,YR + taNprpR * (CX - XR),YR) -> 5.900306257 | CA22: CX | CB22: =XR + PROS * SIGN(XR) * 1 / VELOCITY3 * kk * COS(ATAN(taNprpR)) -> 9.562358719 | CC22: CY | CD22: =YR + taNprpR * (CX - XR) -> 5.900306257 | CH22: LINE RZ | CI22: R_3Y | CJ22: LINE PT | CN22: 7.5 | CO22: 67.5 | CP22: 37.16517187 | CQ22: -59375 | CR22: 58815 | CS22: 153.3818764 | CT22: 0.510915033 | CU22: 133.7946187 | CV22: 75 | CW22: 90 | CX22: 7.5 | CY22: 67.5 | CZ22: 37.16517187 | DA22: 777.3138237 | DB22: 2945.899602 | DC22: 34.32724633 | DD22: 0.510915033 | DE22: 29.94356924 | DF22: 16.78518698 | DG22: 192.9563014 | DH22: 7.5 | DI22: 67.5 | DJ22: 37.16517187 | DK22: 4.429355467 | DL22: 21.21593009 | DM22: 2.913137833 | DN22: 0.510915033 | DO22: 2.541122686 | DP22: 1.424453414 | DQ22: -12.95630141
A23: -1.130973355 | B23: 3.832013624 | C23: -4.524135262 | D23: 21.1377119 | E23: -10.62554087 | F23: -19.12597356 | G23: 11.74317328 | I23: -2.460914245 | J23: -7.771459615 | K23: -6.29320391 | L23: 17 | M23: MHNYMA17 | AA23: x1 | AB23: =-Ahyp -> -9.637121318 | AC23: =BHYP -> 6.072405396 | AD23: y1 | AE23: x1 | AF23: =AB23*COS(phi)+AC23*COS(psi) -> -6.478468392 | AG23: =AB23*SIN(phi)+AC23*SIN(psi) -> 3.599149107 | AH23: =(qy+qx/TANSP+CCC*TANSP)/(TANSP+1/TANSP) ->  | AI23: =TANSP*(AH23-CCC) ->  | AJ23: TY | AK23: AND Y=QY-1/TANSP*(X-QX) | AP23: PX | AQ23: =PX -> 9.490711791 | AR23: =PY -> 1.673468555 | BA23: BETAQQ | BB23: =AAA^2*TANTHETA*MQ -> 0 | BC23: TANPC | BD23: =PY/PX -> 0.1763269807 | BE23: 2 | BF23: 2 | BG23: -2 | BH23: -5 | BI23: =BI22+1 -> 3 | BJ23: MHNYMA3 | BK23: FROM SIMILAR TRIANGLES QTV AND PCF QV²/QT²=PC²/PF² QT²=QV²· PF²/PC²=GV·VP·CD² /CP² · PF²/PC² | BU23: SCB | BV23: =BY - CY + CX * taNFR - BX * taNFq -> -9.434738666 | BY23: =SAB / (tanfp - taNFq) -> 3.861971843 | BZ23: =AY + tanfp * (XED - AX) -> -1.399494746 | CA23: XD(XED) | CB23: =SAB/(tanfp-taNFq) -> 3.861971843 | CC23: YD | CD23: =AY + tanfp * (XED - AX) -> -1.399494746 | CG23: R_3X | CH23: =CB30 -> 11.39251709 | CI23: =CD30 -> 3.880524564 | CJ23: =xp -> 14.47853229 | CK23: =yp_ -> -6.300791088 | CL23: P_3Y | CN23: 8 | CO23: 72 | CP23: 39.68626967 | CQ23: -67590 | CR23: 67030 | CS23: 163.7437022 | CT23: 0.5104482536 | CU23: 142.8705708 | CV23: 80 | CW23: 90 | CX23: 8 | CY23: 72 | CZ23: 39.68626967 | DA23: 733.5173369 | DB23: 2989.696088 | DC23: 34.58147532 | DD23: 0.5104482536 | DE23: 30.17322225 | DF23: 16.89541637 | DG23: 192.9563014 | DH23: 8 | DI23: 72 | DJ23: 39.68626967 | DK23: 4.118560265 | DL23: 20.90513489 | DM23: 2.891721625 | DN23: 0.5104482536 | DO23: 2.523101125 | DP23: 1.412803833 | DQ23: -12.95630141
A24: -1.099557429 | B24: 4.085914498 | C24: -4.455032621 | D24: 19.82420338 | E24: -9.813052528 | F24: -17.66349455 | G24: 11.01344632 | I24: -2.408554368 | J24: -7.431448255 | K24: -6.691306064 | L24: 18 | M24: MHNYMA18 | S24: QT/QX=PF/PE=PF/AC QT=QX·PF/(PF·CD/BC)=QX·BC/CD | AA24: x2 | AB24: =-Ahyp -> -9.637121318 | AC24: =0 -> 0 | AD24: h2 | AF24: =AB24*COS(phi)+AC24*COS(psi) -> -9.490711791 | AH24: =qx ->  | AI24: =qy ->  | AK24: X*(TANSP+1/TANSP)=(QY+QX/TANSP+CCC*TANSP) | AQ24: PF | BA24: GAMAQQ | BB24: =AAA^2*(MQ^2+BBB^2) -> 2025 | BE24: 3 | BF24: 3 | BG24: -4 | BH24: -4 | BI24: 4 | BJ24: MHNYMA4 | BK24: COMBINING WE GET QR/(PC²·QT²)=QR/(PC²·GV·PV·CD²·PF²/PC^4)= QR/(PC²·QT²)=QR/(PC²·2PC·PV·CD²·PF²/PC^4)=PC/(2CD²·PF²) Q.E.D. | BY24: =SCB/(taNFR-taNFq) -> 4.991222333 | BZ24: =BY + taNFq * (XE - BX) -> 1.758322218 | CA24: XE | CB24: =SCB/(taNFR-taNFq) -> 4.991222333 | CC24: YE | CD24: =YB+taNFq*(XE-BX) -> 1.758322218 | CG24: v_3X | CH24: =IF(vimata>2,CB26,r_3x) -> 9.640624587 | CI24: =IF(vimata>2,CD26,r_3y) -> 2.293105117 | CJ24: =IF(vimata>2,CB25,CJ23) -> 8.167919499 | CK24: =IF(vimata>2,CD25,CK23) -> -1.825142474 | CL24: T_3Y | CN24: 8.5 | CO24: 76.5 | CP24: 42.20485754 | CQ24: -76335 | CR24: 75775 | CS24: 174.0976737 | CT24: 0.5100623729 | CU24: 151.9374871 | CV24: 85 | CW24: 90 | CX24: 8.5 | CY24: 76.5 | CZ24: 42.20485754 | DA24: 694.3928954 | DB24: 3028.82053 | DC24: 34.80701383 | DD24: 0.5100623729 | DE24: 30.37657025 | DF24: 16.99388689 | DG24: 192.9563014 | DH24: 8.5 | DI24: 76.5 | DJ24: 42.20485754 | DK24: 3.848520584 | DL24: 20.63509521 | DM24: 2.872984177 | DN24: 0.5100623729 | DO24: 2.507293677 | DP24: 1.402681896 | DQ24: -12.95630141
A25: -1.068141502 | B25: 4.335783067 | C25: -4.3815334 | D25: 18.68174647 | E25: -9.094966236 | F25: -16.37093923 | G25: 10.37874804 | I25: -2.35619449 | J25: -7.071067812 | K25: -7.071067812 | S25: AC·CB=CD·PF | AA25: X3 | AB25: =-Ahyp -> -9.637121318 | AC25: =-BHYP -> -6.072405396 | AD25: y3 | AF25: =AB25*COS(phi)+AC25*COS(psi) -> -12.50295519 | AG25: =AB25*SIN(phi)+AC25*SIN(psi) -> -6.946086216 | AP25: FIND QX | AQ25: Y=QY+TAN(PSI)*(X-QX) | BA25: DIAKQQ | BB25: =BETAQQ^2-ALFAQQ*GAMAQQ -> 49111.87784 | BC25: QR | BD25: CR | BI25: 5 | BJ25: MHNYMA5 | BU25: Spq | BV25: =YQ - yp_ + xp * tanfp - XQ * taNFq -> -28.63353012 | BY25: =Spq / (tanfp - taNFq) -> 8.167919499 | BZ25: =yp_ + tanfp * (XT - xp) -> -1.825142474 | CA25: XT | CB25: =Spq / (tanfp - taNFq) -> 8.167919499 | CC25: YT | CD25: =yp_ + tanfp * (XT - xp) -> -1.825142474 | CI25: V_3Y | CJ25: T_3X | CN25: 9 | CO25: 81 | CP25: 44.72135955 | CQ25: -85610 | CR25: 85050 | CS25: 184.4451138 | CT25: 0.5097396788 | CU25: 160.9968944 | CV25: 90 | CW25: 90 | CX25: 9 | CY25: 81 | CZ25: 44.72135955 | DA25: 659.2307607 | DB25: 3063.982665 | DC25: 35.00847134 | DD25: 0.5097396788 | DE25: 30.55789903 | DF25: 17.08238487 | DG25: 192.9563014 | DH25: 9 | DI25: 81 | DJ25: 44.72135955 | DK25: 3.61171311 | DL25: 20.39828773 | DM25: 2.856451486 | DN25: 0.5097396788 | DO25: 2.493315268 | DP25: 1.393805607 | DQ25: -12.95630141
A26: -1.036725576 | B26: 4.581372742 | C26: -4.303710135 | D26: 17.68029029 | E26: -8.454538279 | F26: -15.2181689 | G26: 9.822383494 | I26: -2.303834613 | J26: -6.691306064 | K26: -7.431448255 | AA26: TANGENT 2 | AH26: EXTENSION OF TANGENT 2 | AQ26: Y=TANSP*(X-CCC) | AS26: X*(TANSP-TAN(PSI))=QY+CCC*TANSP-TAN(PSI)*QX | BA26: QQX | BB26: =(-BETAQQ-SQRT(DIAKQQ))/ALFAQQ -> 9.137591893 | BC26: =rx -> 8.090711791 | BD26: =0 -> 0 | BF26: t | BG26: X | BH26: Y | BI26: 6 | BJ26: MHNYMA6 | BR26: kyklos kampylothtas | BU26: SRQ | BV26: =YR - YQ + XQ * taNFq - XR * taNFR -> 18.22334641 | BY26: =SRQ / (taNFq - taNFR) -> 9.640624587 | BZ26: =YQ + taNFq * (XZ - XQ) -> 2.293105117 | CA26: XZ | CB26: =SRQ/(taNFq-taNFR) -> 9.640624587 | CC26: YZ | CD26: =YQ + taNFq * (XZ - XQ) -> 2.293105117 | CG26: TANVT | CH26: LINEZT | CK26: LINE ZE | CN26: 9.5 | CO26: 85.5 | CP26: 47.23610907 | CQ26: -95415 | CR26: 94855 | CS26: 194.7870632 | CT26: 0.5094670641 | CU26: 170.0499926 | CV26: 95 | CW26: 90 | CX26: 9.5 | CY26: 85.5 | CZ26: 47.23610907 | DA26: 627.4580228 | DB26: 3095.755403 | DC26: 35.18951777 | DD26: 0.5094670641 | DE26: 30.72060916 | DF26: 17.16235223 | DG26: 192.9563014 | DH26: 9.5 | DI26: 85.5 | DJ26: 47.23610907 | DK26: 3.402358892 | DL26: 20.18893351 | DM26: 2.841755339 | DN26: 0.5094670641 | DO26: 2.480865343 | DP26: 1.385958352 | DQ26: -12.95630141
A27: -1.005309649 | B27: 4.822441155 | C27: -4.221639628 | D27: 16.79647245 | E27: -7.8787393 | F27: -14.18173074 | G27: 9.331373584 | I27: -2.251474735 | J27: -6.29320391 | K27: -7.771459615 | AA27: X1 | AB27: =-Ahyp -> -9.637121318 | AC27: =BHYP -> 6.072405396 | AF27: =AB27*COS(phi)+AC27*COS(psi) -> -6.478468392 | AG27: =AB27*SIN(phi)+AC27*SIN(psi) -> 3.599149107 | AI27: FOR Y =BHYP | AK27: X=AHYP*SQRT(2) | AS27: XX | AT27: =(qy+CCC*TANSP-TAN(psi)*qx)/(TANSP-TAN(psi)) ->  | AU27: =TANSP*(AT27-CCC) ->  | AV27: XY | BA27: QQY | BB27: =ry+TANTHETA*(QQX-rx) -> -0.8776345869 | BC27: =ry -> -0.7770853179 | BD27: 0 | BE27: =DEGREES(BF27) -> -180 | BF27: =-PI() -> -3.141592654 | BG27: =IF(ABS(COS($BF27))>0.0000000001,AAA/COS($BF27),"") -> -9 | BH27: =IF(ABS(COS($BF27))>0.0000000001,BBB*TAN($BF27),"") -> 6.125742275e-16 | BI27: 7 | BJ27: MHNYMA7 | BQ27: =-PI() -> -3.141592654 | BR27: =x_ken+r_cakmp*COS($BQ27) -> 8.999998672 | BS27: =y_ken+r_cakmp*SIN(BQ27) -> -0.0001127457725 | BU27: TaNTd | BV27: =(YT - YD) / (XT - XED) -> -0.09885111529 | BW27: Stv | BX27: =YZ - YT + XT * TaNTd - XZ * TanVE -> 2.20195706 | BY27: =Stv / (TaNTd - TanVE) -> -10.29563014 | BZ27: =YT + TaNTd * (S_3X - XT) -> -1.776356839e-15 | CA27: XS | CB27: =Stv/(TaNTd-TanVE) -> -10.29563014 | CC27: YS | CD27: =YT + TaNTd * (S_3X - XT) -> -1.776356839e-15 | CG27: =(v_3y-r_3y)/(v_3x-r_3x) -> 0.9061169233 | CH27: =IF(vimata>2,CH24,CH24+1000) -> 9.640624587 | CI27: =IF(vimata>2,CI24,CI24+1000) -> 2.293105117 | CJ27: TAN1 | CK27: =(CI24-CJ20)/(CH24-CI20) -> 0.1429779104 | CN27: 10 | CO27: 90 | CP27: 49.74937186 | CQ27: -105750 | CR27: 105190 | CS27: 205.1243525 | CT27: 0.5092346582 | CU27: 179.0977387 | CV27: 100 | CW27: 90 | CX27: 10 | CY27: 90 | CZ27: 49.74937186 | DA27: 598.6071424 | DB27: 3124.606283 | DC27: 35.35311179 | DD27: 0.5092346582 | DE27: 30.86743382 | DF27: 17.23496569 | DG27: 192.9563014 | DH27: 10 | DI27: 90 | DJ27: 49.74937186 | DK27: 3.215945484 | DL27: 20.00252011 | DM27: 2.828605318 | DN27: 0.5092346582 | DO27: 2.469705863 | DP27: 1.378970991 | DQ27: -12.95630141
A28: -0.9738937226 | B28: 5.058750401 | C28: -4.135402871 | D28: 16.01185937 | E28: -7.357276579 | F28: -13.24309784 | G28: 8.895477427 | I28: -2.199114858 | J28: -5.877852523 | K28: -8.090169944 | AA28: X2 | AB28: 0 | AC28: =BHYP -> 6.072405396 | AF28: =AB28*COS(phi)+AC28*COS(psi) -> 3.012243399 | AG28: =AB28*SIN(phi)+AC28*SIN(psi) -> 5.272617661 | AI28: =-Ahyp*SQRT(2) -> -13.62894767 | AJ28: =BHYP -> 6.072405396 | AM28: =AI28*COS(phi)+AJ28*COS(psi) -> -10.40964993 | AN28: =AI28*SIN(phi)+AJ28*SIN(psi) -> 2.905975735 | AS28: QX | AT28: =qx ->  | AU28: =qy ->  | BB28: TTX | BC28: =(QQY-TANQT*QQX)/(TANPC-TANQT) -> 8.711975429 | BD28: =QQX -> 9.137591893 | BE28: =DEGREES(BF28) -> -176.4 | BF28: =BF27+PI()/50 -> -3.078760801 | BG28: -9.017794558 | BH28: 0.3145733363 | BI28: 8 | BJ28: MHNYMA8 | BQ28: =BQ27+PI()/50 -> -3.078760801 | BR28: 9.005490607 | BS28: -0.1748689452 | BU28: TanVE | BV28: =(YZ - YE) / (XZ - XE) -> 0.1150218609 | BY28: =TaNTd -> -0.09885111529 | CA28: XP | CB28: =xp -> 14.47853229 | CC28: YP | CD28: -12.16818513 | CH28: =IF(vimata>2,CJ24,CH27) -> 8.167919499 | CI28: =IF(vimata>2,CK24,CI27) -> -1.825142474 | CK28: X1 | CL28: =CH24 -> 9.640624587 | CM28: =IF(vimata>3,CB24,CL28) -> 4.991222333 | CN28: 10.5 | CO28: 94.5 | CP28: 52.2613624 | CQ28: -116615 | CR28: 116055 | CS28: 215.4576525 | CT28: 0.509034912 | CU28: 188.1409046 | CV28: 105 | CW28: 90 | CX28: 10.5 | CY28: 94.5 | CZ28: 52.2613624 | DA28: 572.292791 | DB28: 3150.920634 | DC28: 35.50166551 | DD28: 0.509034912 | DE28: 31.00059519 | DF28: 17.30119509 | DG28: 192.9563014 | DH28: 10.5 | DI28: 94.5 | DJ28: 52.2613624 | DK28: 3.048898007 | DL28: 19.83547263 | DM28: 2.816769258 | DN28: 0.509034912 | DO28: 2.45964583 | DP28: 1.372709526 | DQ28: -12.95630141
A29: -0.9424777961 | B29: 5.290067271 | C29: -4.045084972 | D29: 15.31171455 | E29: -6.881909602 | F29: -12.38743728 | G29: 8.506508084 | I29: -2.14675498 | J29: -5.44639035 | K29: -8.386705679 | AA29: X3= | AB29: =Ahyp -> 9.637121318 | AC29: =BHYP -> 6.072405396 | AF29: =AB29*COS(phi)+AC29*COS(psi) -> 12.50295519 | AG29: =AB29*SIN(phi)+AC29*SIN(psi) -> 6.946086216 | AI29: =-AI28 -> 13.62894767 | AJ29: =BHYP -> 6.072405396 | AM29: =AI29*COS(phi)+AJ29*COS(psi) -> 16.43413673 | AN29: =AI29*SIN(phi)+AJ29*SIN(psi) -> 7.639259588 | AV29: FIND V AS CUT OF gp and qx | BB29: TTY | BC29: =TANPC*TTX -> 1.536156323 | BD29: =QQY -> -0.8776345869 | BE29: -172.8 | BF29: =BF28+PI()/50 -> -3.015928947 | BG29: -9.071531737 | BH29: 0.6316468922 | BI29: 9 | BJ29: MHNYMA9 | BQ29: =BQ28+PI()/50 -> -3.015928947 | BR29: 9.021944737 | BS29: -0.3489354617 | CA29: XQ | CB29: =AAA/COS(fi_2) -> 9.183049604 | CC29: YQ | CD29: =BBB*TAN(fi_2) -> 1.013550178 | CK29: Y1 | CL29: =IF(vimata>2,CI24,CL28) -> 2.293105117 | CM29: =IF(vimata>2,CD24,CM28) -> 1.758322218 | CN29: 11 | CO29: 99 | CP29: 54.77225575 | CQ29: -128010 | CR29: 127450 | CS29: 225.7875107 | CT29: 0.5088619712 | CU29: 197.1801207 | CV29: 110 | CW29: 90 | CX29: 11 | CY29: 99 | CZ29: 54.77225575 | DA29: 548.1945423 | DB29: 3175.018883 | DC29: 35.63716534 | DD29: 0.5088619712 | DE29: 31.12191875 | DF29: 17.36184687 | DG29: 192.9563014 | DH29: 11 | DI29: 99 | DJ29: 54.77225575 | DK29: 2.898347673 | DL29: 19.6849223 | DM29: 2.806059322 | DN29: 0.5088619712 | DO29: 2.450530209 | DP29: 1.367066426 | DQ29: -12.95630141
A30: -0.9110618695 | B30: 5.516163483 | C30: -3.950775062 | D30: 14.68411882 | E30: -6.445961159 | F30: -11.60273009 | G30: 8.157843788 | I30: -2.094395102 | J30: -5 | K30: -8.660254038 | AA30: TANGENT3 | AE30: pr | AF30: 1.4 | AI30: find Q | AJ30: y=ry+tspI(qx-rx) | AM30: bbb^2*(qx^2/AAA^2-1)=ry^2+tsp^2*(qx^2-2*qx*rx+rx^2)+2*ry*tsp*(qx-rx) | AV30: y=tan(phi)*x | AX30: x*(tan(phi)-tan(psi))=(qy-tan(psi)*qx) | BB30: VQ | BE30: -169.2 | BF30: -2.953097094 | BG30: -9.162289334 | BH30: 0.9538010111 | BI30: 10 | BJ30: MHNYMA10 | BQ30: -2.953097094 | BR30: 9.049296126 | BS30: -0.5216253344 | BY30: =CCC -> 10.29563014 | CA30: XR | CB30: =AAA/COS(fi_3) -> 11.39251709 | CC30: YR | CD30: =BBB*TAN(fi_3) -> 3.880524564 | CK30: LINE DT | CN30: 11.5 | CO30: 103.5 | CP30: 57.28219619 | CQ30: -139935 | CR30: 139375 | CS30: 236.1143791 | CT30: 0.5087112386 | CU30: 206.2159063 | CV30: 115 | CW30: 90 | CX30: 11.5 | CY30: 103.5 | CZ30: 57.28219619 | DA30: 526.0437594 | DB30: 3197.169666 | DC30: 35.76126209 | DD30: 0.5087112386 | DE30: 31.23291813 | DF30: 17.41759717 | DG30: 192.9563014 | DH30: 11.5 | DI30: 103.5 | DJ30: 57.28219619 | DK30: 2.761965658 | DL30: 19.54854028 | DM30: 2.79632189 | DN30: 0.5087112386 | DO30: 2.442231833 | DP30: 1.361954399 | DQ30: -12.95630141
A31: -0.879645943 | B31: 5.736815908 | C31: -3.852566214 | D31: 14.11933053 | E31: -6.043961752 | F31: -10.87913115 | G31: 7.844072518 | I31: -2.042035225 | J31: -4.539904997 | K31: -8.910065242 | AA31: X1 | AB31: =Ahyp -> 9.637121318 | AC31: =BHYP -> 6.072405396 | AE31: zx | AF31: =PX+pr -> 10.89071179 | AG31: =PY+TAN(psi)*pr -> 4.124022427 | AH31: zy | AJ31: y-bbb*sqrt(s^2/AAA^2-1) | AM31: qx^2*((bbb/AAAz)^2-tsp^2)+2*(tsp^2*rx*-ry*tsp)*qx-bbb^2-ry^2+2*ry*tsp*rx-rx^2*tsp^2 | AV31: y=qy+tan(psi)*(x-qx) | AX31: vx | AY31: =(qy-TAN(psi)*qx)/(TAN(phi)-TAN(psi)) ->  | AZ31: =TAN(phi)*(AY31) ->  | BA31: vy | BB31: VXX | BC31: =(QQY-QQX*TANCD)/(TANPC-TANCD) -> 10.71874186 | BD31: =QQX -> 9.137591893 | BE31: -165.6 | BF31: -2.890265241 | BG31: -9.291922843 | BH31: 1.283781802 | BI31: 11 | BJ31: MHNYMA11 | BQ31: -2.890265241 | BR31: 9.08743683 | BS31: -0.6922570351 | BV31: PIGIOX | BW31: =IF(EPILOGI=1,CCC,IF(EPILOGI=2,-CCC,0)) -> -10.29563014 | CA31: VELOCITY1 | CB31: =SQRT(2*KIN1_/MASS) -> 20.99070316 | CD31: FI1 | CE31: -1.099557429 | CJ31: TAN2 | CK31: =(CK24-CH20)/(CJ24-CG20) -> -0.09885111529 | CN31: 12 | CO31: 108 | CP31: 59.79130372 | CQ31: -152390 | CR31: 151830 | CS31: 246.4386333 | CT31: 0.5085790632 | CU31: 215.2486934 | CV31: 120 | CW31: 90 | CX31: 12 | CY31: 108 | CZ31: 59.79130372 | DA31: 505.6135383 | DB31: 3217.599887 | DC31: 35.87533909 | DD31: 0.5085790632 | DE31: 31.33485915 | DF31: 17.46901706 | DG31: 192.9563014 | DH31: 12 | DI31: 108 | DJ31: 59.79130372 | DK31: 2.637841773 | DL31: 19.4244164 | DM31: 2.787430099 | DN31: 0.5085790632 | DO31: 2.434645407 | DP31: 1.357301846 | DQ31: -12.95630141
A32: -0.8482300165 | B32: 5.951806788 | C32: -3.750555348 | D32: 13.60931275 | E32: -5.671386746 | F32: -10.20849614 | G32: 7.560729305 | I32: -1.989675347 | J32: -4.067366431 | K32: -9.135454576 | AA32: X2 | AB32: =AB31 -> 9.637121318 | AC32: =0 -> 0 | AE32: px | AF32: =PX -> 9.490711791 | AG32: =PY -> 1.673468555 | AH32: py | AM32: alfaq | AN32: =AAA^2*TANSP^2-BBB^2 -> 325.1196409 | AO32: diakq | AP32: =betaq^2-alfaq*gamaq -> -137116.0658 | AR32: M | AS32: =ry-TANSP*rx -> 16.04393977 | AX32: v | AY32: =qx ->  | AZ32: =qy ->  | BB32: VYY | BC32: =TANPC*VXX -> 1.890003388 | BD32: =QQY -> -0.8776345869 | BE32: -162 | BF32: -2.827433388 | BG32: -9.463160018 | BH32: 1.624598481 | BI32: 12 | BJ32: MHNYMA12 | BL32: =AA -> LELIPS | BQ32: -2.827433388 | BR32: 9.136216325 | BS32: -0.8601571585 | BV32: PIGIOY | BW32: 0 | CA32: VELOCITY2 | CB32: =SQRT(2*KIN2_/MASS) -> 10.71984265 | CD32: FI2 | CE32: -0.05235987756 | CI32: XLYSH | CJ32: S_3Y | CK32: X2 | CL32: =IF(vimata>3,t_3x,xp+1000) -> 8.167919499 | CM32: =IF(vimata>3,CB23,xp+1000) -> 3.861971843 | CN32: 12.5 | CO32: 112.5 | CP32: 62.29967897 | CQ32: -165375 | CR32: 164815 | CS32: 256.7605889 | CT32: 0.5084625154 | CU32: 224.2788443 | CV32: 125 | CW32: 90 | CX32: 12.5 | CY32: 112.5 | CZ32: 62.29967897 | DA32: 486.7109066 | DB32: 3236.502519 | DC32: 35.9805643 | DD32: 0.5084625154 | DE32: 31.4288085 | DF32: 17.51659224 | DG32: 192.9563014 | DH32: 12.5 | DI32: 112.5 | DJ32: 62.29967897 | DK32: 2.524394437 | DL32: 19.31096906 | DM32: 2.779278256 | DN32: 0.5084625154 | DO32: 2.427682994 | DP32: 1.353049483 | DQ32: -12.95630141
A33: -0.8168140899 | B33: 6.160923953 | C33: -3.644843137 | D33: 13.14737864 | E33: -5.324459202 | F33: -9.584026563 | G33: 7.304099246 | I33: -1.93731547 | J33: -3.583679495 | K33: -9.335804265 | AA33: X3= | AB33: =AB32 -> 9.637121318 | AC33: =-BHYP -> -6.072405396 | AE33: Rx | AF33: =PX-pr -> 8.090711791 | AG33: =PY-pr*TAN(psi) -> -0.7770853179 | AH33: Ry | AM33: betaq | AN33: =AAA^2*TANSP*M -> -2701.85333 | AO33: qx | AP33: =(-betaq-SQRT(diakq))/(1*alfaq) ->  | AQ33: =(-betaq+SQRT(diakq))/alfaq ->  | AS33: RX | AT33: =rx -> 8.090711791 | AY33: qx | AZ33: qy | BB33: PV | BC33: =VXX -> 10.71874186 | BD33: =PX -> 9.490711791 | BE33: -158.4 | BF33: -2.764601535 | BG33: -9.679745763 | BH33: 1.979640044 | BI33: 13 | BJ33: MHNYMA13 | BL33: =gonia -> 0.01745329252 | BM33: =BB -> 0 | BQ33: -2.764601535 | BR33: 9.195442101 | BS33: -1.02466308 | CA33: VELOCITY3 | CB33: =SQRT(2*KIN3_/MASS) -> 16.51001243 | CD33: FI3 | CE33: 0.9599310886 | CG33: =CL33-CL29+CL28*CK27-CL32*CK31 -> -1.932443281 | CH33: S-3X | CI33: =$CB$27 -> -10.29563014 | CJ33: =$CD$27 -> -1.776356839e-15 | CK33: Y2 | CL33: =IF(vimata>3,t_3y,yp_+1000) -> -1.825142474 | CM33: =IF(vimata>3,CD23,yp_+1000) -> -1.399494746
A34: -0.7853981634 | B34: 6.363961031 | C34: -3.535533906 | D34: 12.72792206 | E34: -5 | F34: -9 | G34: 7.071067812 | I34: -1.884955592 | J34: -3.090169944 | K34: -9.510565163 | AA34: TANGENT4 | AM34: gamaq | AN34: =AAA^2*(M^2+BBB^2) -> 22875.04828 | AO34: qy | AP34: =ry+TANSP*(AP33-rx) ->  | BC34: =VYY -> 1.890003388 | BD34: =PY -> 1.673468555 | BE34: -154.8 | BF34: -2.701769682 | BG34: -9.946652209 | BH34: 2.352821406 | BI34: 14 | BJ34: MHNYMA14 | BL34: aktina kampylothtaw | BQ34: -2.701769682 | BR34: 9.26488042 | BS34: -1.185125568 | CB34: AAA | CC34: 7 | CD34: KIN1 | CE34: =KIN1_ -> 1101.524048 | CI34: =CI33 -> -10.29563014 | CJ34: =CJ33 -> -1.776356839e-15
A35: -0.7539822369 | B35: 6.560717647 | C35: -3.42273553 | D35: 12.34621033 | E35: -4.695312529 | F35: -8.451562552 | G35: 6.85900574 | I35: -1.832595715 | J35: -2.588190451 | K35: -9.659258263 | AA35: X1 | AB35: =Ahyp -> 9.637121318 | AC35: =-BHYP -> -6.072405396 | AF35: =AB35*COS(phi)+AC35*COS(psi) -> 6.478468392 | AG35: =AB35*SIN(phi)+AC35*SIN(psi) -> -3.599149107 | AI35: =-Ahyp*SQRT(2) -> -13.62894767 | AJ35: =-BHYP -> -6.072405396 | AM35: =AI35*COS(phi)+AJ35*COS(psi) -> -16.43413673 | AN35: =AI35*SIN(phi)+AJ35*SIN(psi) -> -7.639259588 | AP35: =qx ->  | AQ35: =qy ->  | AR35: =XX ->  | AS35: =tx ->  | BE35: -151.2 | BF35: -2.638937829 | BG35: -10.27037703 | BH35: 2.748773261 | BI35: 15 | BJ35: MHNYMA15 | BK35: r_cakmp | BL35: =1/(AAA*BBB)*(AAA^2*SIN(gonia)^2+BBB^2)^(3/2)/COS(gonia)^3 -> 2.783162183 | BN35: =aktin -> 2.777777778 | BO35: =BBB^2/AAA | BQ35: -2.638937829 | BR35: 9.344257242 | BS35: -1.340911353 | CB35: BBB | CC35: 6.2 | CD35: KIN2 | CE35: =KIN2_ -> 287.2875661 | CI35: =CCC -> 10.29563014 | CL35: SSAA | CM35: RTT_X | CN35: RTT_Y | CQ35: DT'"
A36: -0.7225663103 | B36: 6.750999627 | C36: -3.306559327 | D36: 11.99822315 | E36: -4.408092962 | F36: -7.934567331 | G36: 6.665679527 | I36: -1.780235837 | J36: -2.079116908 | K36: -9.781476007 | AA36: X2 | AB36: =0 -> 0 | AC36: =-BHYP -> -6.072405396 | AF36: =AB36*COS(phi)+AC36*COS(psi) -> -3.012243399 | AG36: =AB36*SIN(phi)+AC36*SIN(psi) -> -5.272617661 | AI36: =Ahyp*SQRT(2) -> 13.62894767 | AJ36: =AJ35 -> -6.072405396 | AM36: =AI36*COS(phi)+AJ36*COS(psi) -> 10.40964993 | AN36: =AI36*SIN(phi)+AJ36*SIN(psi) -> -2.905975735 | AP36: =rx -> 8.090711791 | AQ36: =ry -> -0.7770853179 | AR36: =XY ->  | AS36: =ty ->  | BE36: -147.6 | BF36: -2.576105976 | BG36: -10.65936555 | BH36: 3.173096488 | BI36: 16 | BJ36: MHNYMA16 | BK36: x_ken | BL36: =xshmeio+r_cakmp*COS(ATAN(tankath)) -> 11.78316086 | BM36: =xshmeio -> 9.001370952 | BQ36: -2.576105976 | BR36: 9.433259303 | BS36: -1.491405618 | CB36: CCC | CC36: 9.350935782 | CD36: KIN3 | CE36: =-KIN3_ -> -681.4512759 | CG36: find the perpendicular from S to RZ | CJ36: TANRRX | CK36: =(r_3y-v_3y)/(r_3x-v_3x) -> 0.9061169233 | CL36: =S_3Y-r_3y+r_3x*CK36-S_3X*CK37 -> -4.919935842 | CM36: =IF(vimata>3,CL36/(CK36-CK37),PIGIOX+1000) -> -2.448061459 | CN36: =IF(vimata>3,r_3y+CK36*(CM36-r_3x),1000) -> -8.66065789 | CP36: DX | CQ36: rtt_x | CR36: =CL36/(CK36-CK37) -> -2.448061459
A37: -0.6911503838 | B37: 6.934619185 | C37: -3.187119949 | D37: 11.68052604 | E37: -4.13635973 | F37: -7.445447514 | G37: 6.489181136 | I37: -1.727875959 | J37: -1.56434465 | K37: -9.876883406 | AA37: X3= | AB37: =-Ahyp -> -9.637121318 | AC37: =-BHYP -> -6.072405396 | AF37: =AB37*COS(phi)+AC37*COS(psi) -> -12.50295519 | AG37: =AB37*SIN(phi)+AC37*SIN(psi) -> -6.946086216 | AP37: QR | AR37: TX | BE37: -144 | BF37: -2.513274123 | BG37: -11.1246118 | BH37: 3.63271264 | BI37: 17 | BJ37: MHNYMA17 | BK37: y_ken | BL37: =yshmeio+r_cakmp*SIN(ATAN(tankath)) -> -0.0001127457725 | BM37: =yshmeio -> 0.08727532464 | BQ37: -2.513274123 | BR37: 9.531535351 | BS37: -1.636014432 | CJ37: KATH FROM S | CK37: =-1/CK36 -> -1.103610334 | CL37: LINE SR' | CM37: =IF(vimata>3,S_3X,PIGIOX+1000) -> -10.29563014 | CN37: =IF(vimata>3,S_3Y,1000) -> -1.776356839e-15 | CQ37: rtt_y | CR37: =r_3y+CK36*(CR36-r_3x) -> -8.66065789
A38: -0.6597344573 | B38: 7.111395111 | C38: -3.064535268 | D38: 11.3901701 | E38: -3.878397555 | F38: -6.981115599 | G38: 6.32787228 | I38: -1.675516082 | J38: -1.045284633 | K38: -9.945218954 | AH38: line// 1st tangent | BE38: -140.4 | BF38: -2.45044227 | BG38: -11.68052604 | BH38: 4.13635973 | BQ38: -2.45044227 | BR38: 9.638697536 | BS38: -1.774167089 | CB38: =VAPEIRO -> 38.59126028 | CE38: =PIGIOX -> -10.29563014 | CG38: st | CI38: SZ | CL38: LINE R'R | CM38: =IF(vimata>2,RTT_X,r_3x+1000) -> -2.448061459 | CN38: =IF(vimata>3,RTT_Y,r_3y+1000) -> -8.66065789
A39: -0.6283185307 | B39: 7.281152949 | C39: -2.938926261 | D39: 11.1246118 | E39: -3.63271264 | F39: -6.538882752 | G39: 6.180339887 | I39: -1.623156204 | J39: -0.5233595624 | K39: -9.986295348 | AI39: =-Ahyp*SQRT(2) -> -13.62894767 | AJ39: =BHYP -> 6.072405396 | AM39: =AI39*COS(phi)+AJ39*COS(psi) -> -10.40964993 | AN39: =AI39*SIN(phi)+AJ39*SIN(psi) -> 2.905975735 | BE39: -136.8 | BF39: -2.387610417 | BG39: -12.34621033 | BH39: 4.695312529 | BI39: =1/(AAA*BBB)*(AAA^2*SIN(gonia)^2+BBB^2)^(3/2)/COS(gonia)^3/2 | BQ39: -2.387610417 | BR39: 9.754322939 | BS39: -1.905318364 | CB39: =VAPELXI -> 2.332134254 | CF39: x | CG39: =IF(vimata>3,S_3X,PIGIOX) -> -10.29563014 | CH39: =IF(vimata>3,CB25,PIGIOX) -> 8.167919499 | CI39: =IF(vimata>3,CB27,XZ) -> -10.29563014 | CJ39: =CB26 -> 9.640624587 | CM39: =IF(vimata>2,r_3x,r_3x+1000) -> 11.39251709 | CN39: =IF(vimata>3,r_3y,r_3y+1000) -> 3.880524564
A40: -0.5969026042 | B40: 7.443725168 | C40: -2.810416889 | D40: 10.88164839 | E40: -3.397996491 | F40: -6.116393684 | G40: 6.045360217 | I40: -1.570796327 | J40: -2.381233231e-14 | K40: -10 | AI40: =AI39 -> -13.62894767 | AJ40: =-BHYP -> -6.072405396 | AM40: =AI40*COS(phi)+AJ40*COS(psi) -> -16.43413673 | AN40: =AI40*SIN(phi)+AJ40*SIN(psi) -> -7.639259588 | BE40: -133.2 | BF40: -2.324778564 | BG40: -13.14737864 | BH40: 5.324459202 | BQ40: -2.324778564 | BR40: 9.877955237 | BS40: -2.028950662 | CF40: y | CG40: =IF(vimata>3,CD27,0) -> -1.776356839e-15 | CH40: =IF(vimata>3,CD25,0) -> -1.825142474 | CI40: =IF(vimata>3,CD27,YZ) -> -1.776356839e-15 | CJ40: =CD26 -> 2.293105117 | CL40: LINE SP' | CM40: =IF(vimata>3,S_3X,S_3X+1000) -> -10.29563014 | CN40: =IF(vimata>3,S_3Y,S_3Y+1000) -> -1.776356839e-15
A41: -0.5654866776 | B41: 7.59895133 | C41: -2.679133975 | D41: 10.65936555 | E41: -3.173096488 | F41: -5.711573678 | G41: 5.921869749 | I41: -1.518436449 | J41: 0.5233595624 | K41: -9.986295348 | AA41: REPULSIVE FORCE | AH41: line // to TANGENT 3 | BE41: -129.6 | BF41: -2.261946711 | BG41: -14.11933053 | BH41: 6.043961752 | BQ41: -2.261946711 | BR41: 10.00910651 | BS41: -2.144576065 | BY41: line RR" | BZ41: =IF(vimata>2,r_3x,rx+1000) -> 11.39251709 | CA41: =IF(vimata>2,r_3y,ry+1000) -> 3.880524564 | CJ41: TANTP | CK41: =(t_3y-yp_)/(t_3x-xp) -> -0.7092256741 | CL41: =S_3Y-yp_++xp*tanfp-S_3X*(-1/tanfp) -> 10.54896371 | CM41: =IF(vimata>3,CL41/(tanfp+1/tanfp),PIGIOX+1000) -> -4.977771551 | CN41: =IF(vimata>3,yp_+tanfp*(CM41-xp),1000) -> 7.498119123 | CP41: ptx | CQ41: =CL41/(tanfp+1/tanfp) -> -4.977771551
A42: -0.5340707511 | B42: 7.746678243 | C42: -2.545207079 | D42: 10.45609453 | E42: -2.956991757 | F42: -5.322585163 | G42: 5.808941405 | I42: -1.466076572 | J42: 1.045284633 | K42: -9.945218954 | AA42: =-CCC -> -10.29563014 | AB42: 0 | AI42: =Ahyp*SQRT(2) -> 13.62894767 | AJ42: =BHYP -> 6.072405396 | AM42: =AI42*COS(phi)+AJ42*COS(psi) -> 16.43413673 | AN42: =AI42*SIN(phi)+AJ42*SIN(psi) -> 7.639259588 | BE42: -126 | BF42: -2.199114858 | BG42: -15.31171455 | BH42: 6.881909602 | BQ42: -2.199114858 | BR42: 10.14725917 | BS42: -2.25173825 | BZ42: =IF(vimata>2,RTTX,RTTX+1000) -> 7.320589944 | CA42: =IF(vimata>2,RTTY,RTTY+1000) -> 0.1908824646 | CJ42: KATH FROM S | CK42: =-1/CK41 -> 1.409988437 | CM42: =PTTX -> 5.102167861 | CN42: =PTTY -> 0.3491672987 | CP42: pty | CQ42: =yp_+tanfp*(PTX-xp) -> 7.498119123
A43: -0.5026548246 | B43: 7.88676012 | C43: -2.408768371 | D43: =IF(ABS(COS(A43))>0.0000000001,AAA/COS(A43),D42) -> 10.27037703 | E43: =IF(ABS(COS(A43))>0.0000000001,BBB*TAN(A43),E42) -> -2.748773261 | F43: =IF(ABS(COS(A43))>0.001,AAA*TAN(A43),F42) -> -4.94779187 | G43: =IF(ABS(COS($A43))>0.0001,BBB/COS(A43),G42) -> 5.705765018 | I43: -1.413716694 | J43: 1.56434465 | K43: -9.876883406 | AA43: =PX -> 9.490711791 | AB43: =PY -> 1.673468555 | AF43: T_1X | AG43: t_1Y | AI43: =AI42 -> 13.62894767 | AJ43: =-BHYP -> -6.072405396 | AM43: =AI43*COS(phi)+AJ43*COS(psi) -> 10.40964993 | AN43: =AI43*SIN(phi)+AJ43*SIN(psi) -> -2.905975735 | BE43: -122.4 | BF43: -2.136283004 | BG43: -16.79647245 | BH43: 7.8787393 | BQ43: -2.136283004 | BR43: 10.29186798 | BS43: -2.350014298 | CG43: ST'
A44: -0.471238898 | B44: 8.019058718 | C44: -2.269952499 | D44: 10.10093614 | E44: -2.547627247 | F44: -4.585729045 | G44: 5.611631188 | I44: -1.361356817 | J44: 2.079116908 | K44: -9.781476007 | AA44: QT2 | AC44: TANHP | AD44: =(PY-0)/(PX+CCC) -> 0.08457695518 | AE44: =qq_y+(-CCC)*AD44-qq_x*AD45 -> 105.8652342 | AF44: =AE44/(TANHP-AD45) -> 8.890165491 | AG44: =AD44*(AF44+CCC) -> 1.622676177 | BE44: -118.8 | BF44: -2.073451151 | BG44: -18.68174647 | BH44: 9.094966236 | BQ44: -2.073451151 | BR44: 10.44236225 | BS44: -2.439016359 | BV44: SCB | BW44: =YB - CY + CX * taNFR - BX * taNFq -> -9.434738666 | CF44: x | CG44: =IF(vimata>3,S_3X,XR) -> -10.29563014 | CH44: =CB30 -> 11.39251709 | CI44: =CB32 -> 10.71984265 | CJ44: =CB31 -> 20.99070316 | CL44: ST' | CM44: =IF(vimata>3,r_3x,XR) -> 11.39251709 | CN44: =IF(vimata>3,r_3y,ry) -> 3.880524564
A45: -0.4398229715 | B45: 8.143443472 | C45: -2.128896458 | D45: 9.946652209 | E45: -2.352821406 | F45: -4.235078531 | G45: 5.525917894 | I45: -1.308996939 | J45: 2.588190451 | K45: -9.659258263 | AA45: =qx ->  | AB45: =qy ->  | AC45: TANQT | AD45: =-1/AD44 -> -11.82355167 | AF45: =qq_x -> 9.086010381 | AG45: =qq_y -> -0.6929059936 | AH45: PARALLEL TO TANGEN2 | BE45: -115.2 | BF45: -2.010619298 | BG45: -21.1377119 | BH45: 10.62554087 | BQ45: -2.010619298 | BR45: 10.59814803 | BS45: -2.518393181 | BV45: If taNFR <> taNFq Then | CF45: y | CG45: =IF(vimata>3,S_3Y,YR) -> -1.776356839e-15 | CH45: =CD30 -> 3.880524564 | CI45: =CD32 -> FI2 | CJ45: =CD31 -> FI1 | CL45: LINE SPT' | CM45: =IF(vimata>3,S_3X,XR+1000) -> -10.29563014 | CN45: =IF(vimata>3,S_3Y,ry+1000) -> -1.776356839e-15
A46: -0.408407045 | B46: 8.259791631 | C46: -1.985739453 | D46: 9.806542782 | E46: -2.163693211 | F46: -3.89464778 | G46: 5.448079323 | I46: -1.256637061 | J46: 3.090169944 | K46: -9.510565163 | AA46: =TAN(pst) ->  | AI46: =-Ahyp -> -9.637121318 | AJ46: =BHYP*SQRT(2) -> 8.587678068 | AM46: =AI46*COS(phi)+AJ46*COS(psi) -> -5.230756323 | AN46: =AI46*SIN(phi)+AJ46*SIN(psi) -> 5.783138851 | BE46: -111.6 | BF46: -1.947787445 | BG46: -24.44824702 | BH46: 12.62855845 | BQ46: -1.947787445 | BR46: 10.75861052 | BS46: -2.5878315 | BV46: xe = SCB / (taNFR - taNFq): YE = YB + taNFq * (xe - Bx) | CJ46: TANTQ | CK46: =(t_3y-YQ)/(t_3x-XQ) -> 2.796383082 | CL46: =S_3Y-t_3y++t_3x*CK46-S_3X*CK47 -> 20.98400767 | CM46: =IF(vimata>3,CL46/(CK46-CK47),XR+1000) -> 6.653166874 | CN46: =IF(vimata>3,t_3y+CK46*(CM46-t_3x),ry+1000) -> -6.060971089
A47: -0.3769911184 | B47: 8.367988373 | C47: -1.840622763 | D47: 9.679745763 | E47: -1.979640044 | F47: -3.563352079 | G47: 5.377636535 | I47: -1.204277184 | J47: 3.583679495 | K47: -9.335804265 | AB47: eh | AD47: =TANHP -> 0.08457695518 | AI47: =Ahyp -> 9.637121318 | AJ47: =AJ46 -> 8.587678068 | AM47: =AI47*COS(phi)+AJ47*COS(psi) -> 13.75066726 | AN47: =AI47*SIN(phi)+AJ47*SIN(psi) -> 9.130075961 | BE47: -108 | BF47: -1.884955592 | BG47: -29.1246118 | BH47: 15.38841769 | BQ47: -1.884955592 | BR47: 10.92311644 | BS47: -2.647057276 | CC47: =rx -> 8.090711791 | CD47: =ry -> -0.7770853179 | CJ47: KATH FROM S | CK47: =-1/CK46 -> -0.3576047954
A48: -0.3455751919 | B48: 8.467926921 | C48: -1.693689601 | D48: 9.565505319 | E48: -1.800110765 | F48: -3.240199378 | G48: 5.314169622 | I48: -1.151917306 | J48: 4.067366431 | K48: -9.135454576 | AA48: Ex | AB48: =-CCC*TANHP/(TANHP-TAN(psi)) -> 0.5227297939 | AC48: =TANHP*(AB48+CCC) -> 0.9149839434 | AD48: XX_1 | AH48: PARALLE TO TANGENT 4 | BE48: -104.4 | BF48: -1.822123739 | BG48: -36.1896501 | BH48: 19.47371427 | BQ48: -1.822123739 | BR48: 11.09101657 | BS48: -2.695836771 | CC48: =r_3x -> 11.39251709 | CG48: LINE ER | CJ48: LINE PP; | CM48: R'=RTT_X
A49: -0.3141592654 | B49: 8.559508647 | C49: -1.545084972 | D49: 9.463160018 | E49: -1.624598481 | F49: -2.924277266 | G49: 5.257311121 | I49: -1.099557429 | J49: 4.539904997 | K49: -8.910065242 | AB49: =-CCC -> -10.29563014 | AC49: 0 | AI49: =-Ahyp -> -9.637121318 | AJ49: =-BHYP*SQRT(2) -> -8.587678068 | AM49: =AI49*COS(phi)+AJ49*COS(psi) -> -13.75066726 | AN49: =AI49*SIN(phi)+AJ49*SIN(psi) -> -9.130075961 | BE49: -100.8 | BF49: -1.759291886 | BG49: -48.03040271 | BH49: 26.21091791 | BQ49: -1.759291886 | BR49: 11.26164827 | BS49: -2.733977475 | CG49: ER" | CH49: =IF(vimata>2,XE,E_3X+1000) -> 4.991222333 | CI49: =IF(vimata>2,YE,E_3Y+1000) -> 1.758322218 | CK49: =IF(vimata>2,xp,xp+1000) -> 14.47853229 | CL49: =IF(vimata>3,yp_,yp_+1000) -> -6.300791088
A50: -0.2827433388 | B50: 8.642643171 | C50: -1.39495553 | D50: 9.372132853 | E50: -1.452634284 | F50: -2.614741711 | G50: 5.206740474 | I50: -1.047197551 | J50: 5 | K50: -8.660254038 | AB50: =psi -> 1.05174758 | AI50: =Ahyp -> 9.637121318 | AJ50: =AJ49 -> -8.587678068 | AM50: =AI50*COS(phi)+AJ50*COS(psi) -> 5.230756323 | AN50: =AI50*SIN(phi)+AJ50*SIN(psi) -> -5.783138851 | BE50: -97.2 | BF50: -1.696460033 | BG50: -71.8085678 | BH50: 39.57907544 | BQ50: -1.696460033 | BR50: 11.43433814 | BS50: -2.761328864 | CC50: =kk -> 45 | CF50: =(r_3y-CY)/(r_3x-CX) -> -1.103610334 | CG50: =E_3Y-r_3y+r_3x*CF51-E_3X*CF50 -> 14.71238915 | CH50: =IF(vimata>2,CG50/(CF51-CF50),E_3X+1000) -> 7.320589944 | CI50: =IF(vimata>2,r_3y+CF51*(CH50-r_3x),E_3Y+1000) -> 0.1908824646 | CK50: =IF(vimata>2,PTX,xp+1000) -> -4.977771551 | CL50: =IF(vimata>3,PTY,yp_+1000) -> 7.498119123
A51: -0.2513274123 | B51: 8.71724845 | C51: -1.243449436 | D51: 9.291922843 | E51: -1.283781802 | F51: -2.310807243 | G51: 5.162179357 | I51: -0.9948376736 | J51: 5.44639035 | K51: -8.386705679 | AH51: EXTNSION OF TANGENT 1 | BE51: -93.6 | BF51: -1.63362818 | BG51: -143.33374 | BH51: 79.47272422 | BQ51: -1.63362818 | BR51: 11.60840466 | BS51: -2.777782994 | CF51: =-1/CF50 -> 0.9061169233 | CL51: LINE DP'' | CM51: =D_3X -> 3.861971843 | CN51: =D_3Y -> -1.399494746
A52: -0.2199114858 | B52: 8.783250857 | C52: -1.090716207 | D52: 9.222097981 | E52: -1.117632414 | F52: -2.011738346 | G52: 5.123387767 | I52: -0.9424777961 | J52: 5.877852523 | K52: -8.090169944 | AA52: QV | AB52: =qx ->  | AC52: =qy ->  | AI52: =-Ahyp -> -9.637121318 | AJ52: =BHYP*SQRT(2) -> 8.587678068 | AM52: =AI52*COS(phi)+AJ52*COS(psi) -> -5.230756323 | AN52: =AI52*SIN(phi)+AJ52*SIN(psi) -> 5.783138851 | BE52: -90 | BF52: -1.570796327 | BG52: 0 | BQ52: -1.570796327 | BR52: 11.78316086 | BS52: -2.783274929 | CC52: LINE DP" | CD52: =IF(vimata>3,D_3X, D_3X+1000) -> 3.861971843 | CE52: =IF(vimata>3,D_3Y, D_3Y+1000) -> -1.399494746 | CG52: LINE R'R" | CJ52: TADP; | CK52: =-1/tanfp -> 1.409988437 | CL52: =D_3Y-yp_+xp*tanfp-D_3X*(-1/tanfp) -> -10.81258613 | CM52: =IF(vimata>2,CL52/(tanfp-(-1/tanfp)),xp+1000) -> 5.102167861 | CN52: =IF(vimata>2,yp_+tanfp*(CM52-xp),yp_+1000) -> 0.3491672987
A53: -0.1884955592 | B53: 8.840585257 | C53: -0.9369065729 | D53: 9.162289334 | E53: -0.9538010111 | F53: -1.71684182 | G53: 5.090160741 | I53: -0.8901179185 | J53: 6.29320391 | K53: -7.771459615 | P53: =COS(BF52) -> 2.281703472e-15 | AB53: =VX ->  | AC53: =VY ->  | AG53: =D_3Y -> -1.399494746 | AI53: =AI52 -> -9.637121318 | AJ53: =-BHYP*SQRT(2) -> -8.587678068 | AM53: =AI53*COS(phi)+AJ53*COS(psi) -> -13.75066726 | AN53: =AI53*SIN(phi)+AJ53*SIN(psi) -> -9.130075961 | BE53: -86.4 | BF53: -1.507964474 | BG53: =IF(ABS(COS($BF53))>0.0000000001,AAA/COS($BF53),"") -> 143.33374 | BH53: -79.47272422 | BQ53: -1.507964474 | BR53: 11.95791705 | BS53: -2.777782994 | CD53: =IF(vimata>3, PTTX, PTTX+1000) -> 5.102167861 | CE53: =IF(vimata>3, PTTY, PTTY+1000) -> 0.3491672987 | CF53: R' | CG53: =IF(vimata>3,RTT_X,rx+1000) -> -2.448061459 | CH53: =IF(vimata>3,RTT_Y,ry+1000) -> -8.66065789 | CJ53: TANPT | CK53: =-1/CK52 -> -0.7092256741 | CM53: PTTX | CN53: PTTY
A54: -0.1570796327 | B54: 8.889195065 | C54: -0.7821723252 | D54: 9.112186132 | E54: -0.7919222016 | F54: -1.425459963 | G54: 5.062325629 | I54: -0.837758041 | J54: 6.691306064 | K54: -7.431448255 | AD54: tangp | AE54: =(PY-GY)/(PX-GX) -> 0.1763269807 | AF54: tandk | AG54: =DY/DX -> 1.750395623 | AH54: EXTENSION OF TANGENT 3 | BE54: -82.8 | BF54: -1.445132621 | BG54: 71.8085678 | BH54: -39.57907544 | BQ54: -1.445132621 | BR54: 12.13198357 | BS54: -2.761328864 | CF54: R" | CG54: =IF(vimata>3,RTTX,rx+1000) -> 7.320589944 | CH54: =IF(vimata>3,RTTY,ry+1000) -> 0.1908824646 | CL54: LINE P"P' | CM54: =IF(vimata>3,xp,xp+10000) -> 14.47853229 | CN54: =IF(vimata>3,yp_,yp_+1000) -> -6.300791088
A55: -0.1256637061 | B55: 8.929032312 | C55: -0.6266661678 | D55: 9.071531737 | E55: -0.6316468922 | F55: -1.136964406 | G55: 5.039739854 | I55: -0.7853981634 | J55: 7.071067812 | K55: -7.071067812 | AA55: PV | AB55: =PX -> 9.490711791 | AC55: =PY -> 1.673468555 | AD55: y=qq_y+tanhp*(x-qq_x) | AE55: vv_x | AF55: vv_y | AG55: =TAN(psi) -> 1.750395623 | AI55: =Ahyp -> 9.637121318 | AJ55: =BHYP*SQRT(2) -> 8.587678068 | AM55: =AI55*COS(phi)+AJ55*COS(psi) -> 13.75066726 | AN55: =AI55*SIN(phi)+AJ55*SIN(psi) -> 9.130075961 | BE55: -79.2 | BF55: -1.382300768 | BG55: 48.03040271 | BH55: -26.21091791 | BQ55: -1.382300768 | BR55: 12.30467344 | BS55: -2.733977475 | CG55: LINE DT" | CH55: TTTX | CI55: TTTY | CM55: =IF(vimata>3,PTTX,xp+1000) -> 5.102167861 | CN55: =IF(vimata>3,PTTY,yp_+1999) -> 0.3491672987
A56: -0.09424777961 | B56: 8.960057681 | C56: -0.4705415666 | D56: 9.040120374 | E56: -0.4726391559 | F56: -0.8507504806 | G56: 5.022289097 | I56: -0.7330382858 | J56: 7.431448255 | K56: -6.691306064 | AB56: =VX ->  | AC56: =VY ->  | AD56: y=gy+tangp*(x-gx) | AE56: =(qq_y-qq_x*TAN(psi))/(TAN(phi)-TAN(psi)) -> 10.5440248 | AF56: =qq_y+TAN(psi)*(AE56-qq_x) -> 1.859196057 | AG56: =TAN(phi) -> 0.1763269807 | AI56: =Ahyp -> 9.637121318 | AJ56: =-BHYP*SQRT(2) -> -8.587678068 | AM56: =AI56*COS(phi)+AJ56*COS(psi) -> 5.230756323 | AN56: =AI56*SIN(phi)+AJ56*SIN(psi) -> -5.783138851 | BE56: -75.6 | BF56: -1.319468915 | BG56: 36.1896501 | BH56: -19.47371427 | BQ56: -1.319468915 | BR56: 12.47530514 | BS56: -2.695836771 | CE56: TANDT" | CF56: =(BY-YQ)/(BX-XQ) -> -0.3576047954 | CG56: =D_3Y-YQ+XQ*CF57-D_3X*CF56 -> 24.64733928 | CH56: =IF(vimata>2,CG56/(CF57-CF56),xp+1000) -> 7.814658851 | CI56: =IF(vimata>2,YQ+CF57*(CH56-XQ),yp_+1000) -> -2.812994575 | CL56: LINE RZ
A57: -0.06283185307 | B57: 8.982240556 | C57: -0.3139525976 | D57: 9.017794558 | E57: -0.3145733363 | F57: -0.5662320053 | G57: 5.009885865 | I57: -0.6806784083 | J57: 7.771459615 | K57: -6.29320391 | AC57: =GX -> -9.490711791 | AD57: =GY -> -1.673468555 | AE57: =qq_x -> 9.086010381 | AF57: =qq_y -> -0.6929059936 | BE57: -72 | BF57: -1.256637061 | BG57: 29.1246118 | BH57: -15.38841769 | BQ57: -1.256637061 | BR57: 12.64320527 | BS57: -2.647057276 | CE57: TANTQ | CF57: =-1/CF56 -> 2.796383082 | CH57: =IF(vimata>2,D_3X,xp+1000) -> 3.861971843 | CI57: =IF(vimata>2,D_3Y,yp_+1000) -> -1.399494746 | CK57: RX | CL57: =IF(vimata>3,RTT_X,v_3x) -> -2.448061459 | CM57: =IF(vimata>3,RTT_Y,v_3y) -> -8.66065789
A58: -0.03141592654 | B58: 8.995559043 | C58: -0.1570537954 | D58: 9.004443149 | E58: -0.1571313302 | F58: -0.2828363944 | G58: 5.002468416 | I58: -0.6283185307 | J58: 8.090169944 | K58: -5.877852523 | AA58: HS | AB58: =-CCC -> -10.29563014 | AC58: 0 | AD58: ceA | AE58: y=tansp*(x-s_ | AM58: =ry -> -0.7770853179 | BE58: -68.4 | BF58: -1.193805208 | BG58: 24.44824702 | BH58: -12.62855845 | BQ58: -1.193805208 | BR58: 12.80771119 | BS58: -2.5878315 | CF58: =(t_3y-YQ)/(t_3x-XQ) -> 2.796383082 | CK58: VX | CL58: =v_3x -> 9.640624587 | CM58: =v_3y -> 2.293105117
A59: 1.387778781e-15 | B59: 9 | C59: 6.938893904e-15 | D59: 9 | E59: 6.938893904e-15 | F59: 1.249000903e-14 | G59: 5 | I59: -0.5759586532 | J59: 8.386705679 | K59: -5.44639035 | AB59: =CCC -> 10.29563014 | AC59: 0 | AD59: 0 | AE59: y=qy+tanqv*(x-qx) | AG59: tanvq | AH59: =(VY-qy)/(VX-qx) ->  | AL59: ceo | AM59: =ry-TANHP*rx -> -1.461373086 | BE59: -64.8 | BF59: -1.130973355 | BG59: 21.1377119 | BH59: =IF(ABS(COS($BF59))>0.0000000001,BBB*TAN($BF59),"") -> -10.62554087 | BQ59: -1.130973355 | BR59: =x_ken+r_cakmp*COS($BQ59) -> 12.96817368 | BS59: =y_ken+r_cakmp*SIN(BQ59) -> -2.518393181
A60: 0.03141592654 | B60: 8.995559043 | C60: 0.1570537954 | D60: 9.004443149 | E60: 0.1571313302 | F60: 0.2828363944 | G60: 5.002468416 | I60: -0.5235987756 | J60: 8.660254038 | K60: -5 | AA60: C | AB60: =0 -> 0 | AC60: 0 | AE60: =-qy+tanvq*qx-TANSP*CCC ->  | AF60: =AE60/(tanvq-TANSP) ->  | AG60: =qy+tanvq*(AF60-qx) ->  | AK60: m=tanhp | AM60: b^2 | AN60: ag | AO60: a | AP60: =((AAA*TANHP)^2-BBB^2) -> -24.42058583 | AV60: PeRpRxP1 = xp: PeRpRYp1 = yp | BE60: -61.2 | BF60: -1.068141502 | BG60: 18.68174647 | BH60: -9.094966236 | BQ60: -1.068141502 | BR60: 13.12395946 | BS60: -2.439016359 | CK60: EZ' | CP60: SP"'
A61: 0.06283185307 | B61: 8.982240556 | C61: 0.3139525976 | D61: 9.017794558 | E61: 0.3145733363 | F61: 0.5662320053 | G61: 5.009885865 | I61: -0.471238898 | J61: 8.910065242 | K61: -4.539904997 | AB61: 0 | AC61: 0 | AE61: vv_x | AF61: =qx ->  | AG61: =qy ->  | AK61: equation | AL61: Diakrinoysa | AM61: =b^2 -> 100.2296791 | AN61: =((AAA*TANHP)^2-BBB^2)*(ceo^2+BBB^2)*AAA^2 -> -53676.06951 | AO61: GEO | AP61: =(ceo^2+BBB^2)*AAA^2 -> 2197.984515 | AV61: PerPrxP2 = xp + Sgn(xp) * 1 / VELOCITY1 * kk * Cos(Atn(TanpRpp)): | BE61: -57.6 | BF61: -1.005309649 | BG61: 16.79647245 | BH61: -7.8787393 | BQ61: -1.005309649 | BR61: 13.27445373 | BS61: -2.350014298 | CH61: TANqb | CI61: =(YQ-BY)/(XQ-BX) -> -0.3576047954 | CK61: =IF(vimata>2,XE,xp+1000) -> 4.991222333 | CL61: =IF(vimata>2,YE,yp_+1000) -> 1.758322218 | CM61: tansp' | CN61: =tanfp -> -0.7092256741 | CO61: =S_3Y-yp_+xp*tanfp-S_3X*CN61 -> -11.26968097 | CP61: =IF(vimata>3,CO61/(CN62-CN61),xp) -> -5.31785859 | CQ61: =IF(vimata>3,E_3Y+CN62*(CP61-E_3X),yp_) -> -14.0591605
A62: =A61+PI()/100 -> 0.09424777961 | B62: 8.960057681 | C62: 0.4705415666 | D62: 9.040120374 | E62: 0.4726391559 | F62: 0.8507504806 | G62: 5.022289097 | I62: -0.4188790205 | J62: 9.135454576 | K62: -4.067366431 | AB62: 1 | AC62: pv | AD62: =PX -> 9.490711791 | AE62: =PY -> 1.673468555 | AF62: QX | AG62: TANQR | AH62: =(qy-ry)/(qx-rx) ->  | AL62: Diakrinoysa | AM62: =b^2-GEO*a -> 53776.29919 | AP62: qq_x | AQ62: qq_y | AV62: Ax = PerPrxP2: aY = yp + TanpRpp * (Ax - xp) | BE62: -54 | BF62: -0.9424777961 | BG62: 15.31171455 | BH62: -6.881909602 | BQ62: -0.9424777961 | BR62: 13.41906254 | BS62: -2.25173825 | CH62: tanvT | CI62: =-1/CI61 -> 2.796383082 | CJ62: =t_3y-YE+CI61*XE-CI62*t_3x -> -28.20898164 | CK62: =IF(vimata>2,CJ62/(CI61-CI62),xp+1000) -> 8.943909341 | CL62: =IF(vimata>2,v_3y+CI62*(CK62-v_3x),yp_+1000) -> 0.3448223894 | CM62: TANQB | CN62: =-1/tanfp -> 1.409988437 | CP62: =IF(vimata>3,S_3X,xp) -> -10.29563014 | CQ62: =IF(vimata>3,S_3Y,yp_) -> -1.776356839e-15
A63: 0.1256637061 | B63: 8.929032312 | C63: 0.6266661678 | D63: 9.071531737 | E63: 0.6316468922 | F63: 1.136964406 | G63: 5.039739854 | I63: -0.3665191429 | J63: 9.335804265 | K63: -3.583679495 | AA63: is | AD63: =vv_x -> 10.5440248 | AE63: =vv_y -> 1.859196057 | AL63: b | AM63: =(AAA^2*TANHP*ceo) -> -10.01147737 | AN63: xq | AO63: =(-AM63+SQRT(AM62))/AP60 -> -9.905931527 | AP63: =(-b-SQRT(Diakrinoysa))/a -> 9.086010381 | AQ63: =IF(AS65=TANHP,AQ65,AR65) -> -0.6929059936 | AV63: PerPrYq2 = YQ + taNprpQ * (PerPrxQ2 - XQ) | BE63: -50.4 | BF63: -0.879645943 | BG63: 14.11933053 | BH63: -6.043961752 | BQ63: -0.879645943 | BR63: 13.5572152 | BS63: -2.144576065 | CI63: =(v_3y-t_3y)/(v_3x-t_3x) -> 2.796383082 | CJ63: VT | CK63: =IF(vimata>2,t_3x,xp+1000) -> 8.167919499 | CL63: =IF(vimata>2,t_3y,yp_+1000) -> -1.825142474 | CN63: =(YQ-BY)/(XQ-BX) -> -0.3576047954
A64: 0.1570796327 | B64: 8.889195065 | C64: 0.7821723252 | D64: 9.112186132 | E64: 0.7919222016 | F64: 1.425459963 | G64: 5.062325629 | I64: -0.3141592654 | J64: 9.510565163 | K64: -3.090169944 | AA64: T ~ PRCH= PRQ~ PH·QT where QTꓕ HP | AE64: PQH | AK64: RQ | AP64: =(-b+SQRT(Diakrinoysa))/a -> -9.905931527 | AQ64: =BBB*SQRT((qq_x/AAA)^2-1) -> 0.6929059936 | AR64: =-AQ64 -> -0.6929059936 | AS64: =(AQ64--ry)/(AP64-rx) -> 0.004677501397 | AT64: =(AR64-ry)/(AP64-rx) -> -0.004677501397 | AU64: =TAN(psi) -> 1.750395623 | BE64: -46.8 | BF64: -0.8168140899 | BG64: 13.14737864 | BH64: -5.324459202 | BQ64: -0.8168140899 | BR64: 13.68836647 | BS64: -2.028950662 | CH64: Z'T
A65: 0.1884955592 | B65: 8.840585257 | C65: 0.9369065729 | D65: 9.162289334 | E65: 0.9538010111 | F65: 1.71684182 | G65: 5.090160741 | I65: -0.2617993878 | J65: 9.659258263 | K65: -2.588190451 | AA65: Since HC=DS and CE1//HI SI=HS | AE65: =PX -> 9.490711791 | AF65: =PY -> 1.673468555 | AK65: =qq_x -> 9.086010381 | AL65: =qq_y -> -0.6929059936 | AP65: =(-b-SQRT(Diakrinoysa))/a -> 9.086010381 | AQ65: =BBB*SQRT((qq_x/AAA)^2-1) -> 0.6929059936 | AR65: =-AQ65 -> -0.6929059936 | AS65: =(AQ65--ry)/(AP65-rx) -> -0.08457695518 | AT65: =(AR65-ry)/(AP65-rx) -> 0.08457695518 | AU65: =TAN(psi) -> 1.750395623 | BB65: =ddd_2_2 -> 30 | BE65: -43.2 | BF65: -0.7539822369 | BG65: 12.34621033 | BH65: -4.695312529 | BQ65: -0.7539822369 | BR65: 13.81199877 | BS65: -1.905318364 | CK65: =E_3X -> 5.900306257
A66: 0.2199114858 | B66: 8.783250857 | C66: 1.090716207 | D66: 9.222097981 | E66: 1.117632414 | F66: 2.011738346 | G66: 5.123387767 | I66: -0.2094395102 | J66: 9.781476007 | K66: -2.079116908 | AA66: PI=SI-SP=PH (from Hyperbola definition) | AE66: =qq_x -> 9.086010381 | AF66: =qq_y -> -0.6929059936 | AK66: =rx -> 8.090711791 | AL66: =ry -> -0.7770853179 | BA66: =kk -> 45 | BB66: =ddd_2 -> 30 | BE66: -39.6 | BF66: -0.6911503838 | BG66: 11.68052604 | BH66: -4.13635973 | BQ66: -0.6911503838 | BR66: 13.92762417 | BS66: -1.774167089
A67: 0.2513274123 | B67: 8.71724845 | C67: 1.243449436 | D67: 9.291922843 | E67: 1.283781802 | F67: 2.310807243 | G67: 5.162179357 | I67: -0.1570796327 | J67: 9.876883406 | K67: -1.56434465 | AA67: PE=PE1=a | AB67: y=qy+tan(psi)*(x-qx) | AE67: =-CCC -> -10.29563014 | AF67: 0 | AN67: =(PY)/(PX+CCC) -> 0.08457695518 | AO67: =TANHP -> 0.08457695518 | BE67: -36 | BF67: -0.6283185307 | BG67: 11.1246118 | BH67: -3.63271264 | BQ67: -0.6283185307 | BR67: 14.03478636 | BS67: -1.636014432 | CH67: t"t | CI67: =IF(vimata>2,t_3x,t_3x+1000) -> 8.167919499 | CJ67: =IF(vimata>2,t_3y,t_3y+1000) -> -1.825142474 | CL67: T"T' | CM67: =IF(vimata>3,TTTX,xp) -> 7.814658851 | CN67: =IF(vimata>3,TTTY,yp_) -> -2.812994575
A68: 0.2827433388 | B68: 8.642643171 | C68: 1.39495553 | D68: 9.372132853 | E68: 1.452634284 | F68: 2.614741711 | G68: 5.206740474 | I68: -0.1047197551 | J68: 9.945218954 | K68: -1.045284633 | AA68: We draw QTꓕ HP and QX//CD to HP | AD68: y=tanhp*(x+ccc) | AE68: =PX -> 9.490711791 | AF68: =PY -> 1.673468555 | AM68: =ry -> -0.7770853179 | AO68: gonia | AQ68: gonia | AR68: =BI19 -> 0.01745329252 | AT68: kin energy | AU68: VELOCITY1 | AV68: TAN | AW68: perp | AX68: perp1 | BE68: -32.4 | BF68: -0.5654866776 | BG68: 10.65936555 | BH68: -3.173096488 | BQ68: -0.5654866776 | BR68: 14.13306241 | BS68: -1.491405618 | CI68: =TTTX -> 7.814658851 | CJ68: =TTTY -> -2.812994575 | CM68: =IF(vimata>3,TTT_X,xp) -> 6.653166874 | CN68: =IF(vimata>3,TTT_Y,yp_) -> -6.060971089
A69: 0.3141592654 | B69: 8.559508647 | C69: 1.545084972 | D69: 9.463160018 | E69: 1.624598481 | F69: 2.924277266 | G69: 5.257311121 | I69: -0.05235987756 | J69: 9.986295348 | K69: -0.5233595624 | AA69: ∆QTS similar to ∆PEF so QT/QX =PF/PE=PF/a | AM69: =rx -> 8.090711791 | AQ69: X1Y1 | AR69: =ABS(AAA/COS(AR68)) -> 9.001370952 | AS69: =BBB*TAN(AR68) -> 0.08727532464 | AT69: =kinitiki_en -> 250.2822734 | AU69: =AR77 -> 3.335214625 | AV69: =BBB/(AAA*(SIN(AR68))) -> 31.83260472 | AW69: =ATAN(AV71) -> -0.03140400385 | AX69: =AR69 -> 9.001370952 | AY69: =AS69 -> 0.08727532464 | AZ69: =AX70-AX69 -> 13.48573244 | BA69: =AU69*COS(AV70) -> 0.104721878 | BB69: =AU69*SIN(AV70) -> 3.333570147 | BE69: -28.8 | BF69: -0.5026548246 | BG69: 10.27037703 | BH69: -2.748773261 | BQ69: -0.5026548246 | BR69: 14.22206447 | BS69: -1.340911353
A70: 0.3455751919 | B70: 8.467926921 | C70: 1.693689601 | D70: 9.565505319 | E70: 1.800110765 | F70: 3.240199378 | G70: 5.314169622 | I70: -2.012279232e-15 | J70: 10 | K70: -2.012279232e-14 | AA70: GP·GP/PC²=QX²/DC² QR∙PC=QV²∙PC²/CD² and since QV²=QT²∙PC²/PF² | AC70: CV²/PC²-QV²/CD²=1 | AL70: x*(tanhp-tan(psi))=yq-qx*tan(psi)-ccc*tanhp | AQ70: X2Y2 | AR70: =AR69+SIGN(AS69)*AU69*COS(AV70) -> 9.10609283 | AS70: =AS69+(AV69)*(AR70-AR69) -> 3.420845472 | AT70: =AT69+SIGN(AU69)*AW69*COS(gonia) -> 250.2508742 | AU70: =SIGN(AR70-AR69) -> 1 | AV70: =ATAN(AV69) -> 1.539392323 | AW70: =ATAN(AV69) -> 1.539392323 | AX70: =AX69+SIGN(AX69)*1/AU69*kk*COS(ATAN(AV71)) -> 22.48710339 | AY70: =yshmeio+AV71*(AX70-xshmeio) -> -0.3363699459 | AZ70: =(AX70-AX69)*(AR70-AR69)+(AY70-AY69)*(AS70-AS69) -> 0 | BA70: =1/AU69*1*COS(AW69)*ddd_2 -> 8.990488293 | BB70: =1/AU69*1*SIN(AW69)*ddd_2 -> -0.2824301804 | BE70: -25.2 | BF70: -0.4398229715 | BG70: 9.946652209 | BH70: -2.352821406 | BQ70: -0.4398229715 | BR70: 14.30144129 | BS70: -1.185125568
A71: 0.3769911184 | B71: 8.367988373 | C71: 1.840622763 | D71: 9.679745763 | E71: 1.979640044 | F71: 3.563352079 | G71: 5.377636535 | I71: 0.05235987756 | J71: 9.986295348 | K71: 0.5233595624 | AA71: Since PVQR is a parallelogram, PV= QR. And VG→2∙PC. And VG =2 PC in the limit. or QR∙2PC/QV² = PC²/CD² | AK71: xx | AL71: =(qq_y-qq_x*TAN(psi)-CCC*TANHP)/(TANHP-TAN(psi)) -> 10.48601038 | AM71: =TANHP*(AL71+CCC) -> 1.757647879 | AQ71: X3Y3 | AR71: =AR70+AX72 -> 9.330930126 | AS71: =AS70+AY72 -> 3.090015923 | AT71: =AT70+BE11 -> 250.2508742 | AU71: =SIGN(AS70-AS69) -> 1 | AV71: =-1/AV69 -> -0.03141433159 | AW71: =TAN(AW69) -> -0.03141433159 | AX71: x | AY71: y | AZ71: =$CD$20 -> -8.049453132 | BA71: =BA70*BA69 -> 0.9415008179 | BB71: =BB70*BB69 -> -0.9415008179 | BE71: -21.6 | BF71: -0.3769911184 | BG71: 9.679745763 | BH71: -1.979640044 | BQ71: -0.3769911184 | BR71: 14.37087961 | BS71: -1.02466308
A72: 0.408407045 | B72: 8.259791631 | C72: 1.985739453 | D72: 9.806542782 | E72: 2.163693211 | F72: 3.89464778 | G72: 5.448079323 | I72: 0.1047197551 | J72: 9.945218954 | K72: 1.045284633 | AA72: QR∙PC=QV²∙PC²/CD² and since QV²=QT²∙PC²/PF² | AL72: =qq_x -> 9.086010381 | AM72: =qq_y -> -0.6929059936 | AQ72: X4Y4 | AR72: =AR70+AX73 -> 8.860933777 | AS72: =AS70+AY73 -> 3.104780544 | AT72: =AT70+BE12 -> 250.2508742 | AU72: =-AV70 -> -1.539392323 | AV72: =-AU70*DAA*COS(PI()/5) -> -0.3236067977 | AW72: =-AU71*DAA*SIN(PI()/5) -> -0.2351141009 | AX72: =AV72*COS(AU72)+AW72*SIN(AU72) -> 0.2248372955 | AY72: =-AV72*SIN(AU72)+AW72*COS(AU72) -> -0.3308295491 | AZ72: =Thesis(AR69,AS69,AAA,BBB,fi_1,MASS,+ENERGIAPS,ENERGELXI,ENERELAST,STATHAPOSI,STATHELXI,STATHAPOSI,2) ->  | BE72: -18 | BF72: -0.3141592654 | BG72: 9.463160018 | BH72: -1.624598481 | BQ72: -0.3141592654 | BR72: 14.43010539 | BS72: -0.8601571585
A73: 0.4398229715 | B73: =AAA*COS(A73) -> 8.143443472 | C73: =BBB*SIN(A73) -> 2.128896458 | D73: 9.946652209 | E73: 2.352821406 | F73: 4.235078531 | G73: 5.525917894 | I73: 0.1570796327 | J73: 9.876883406 | K73: 1.56434465 | AA73: QR∙PC= QT²∙PC²/PF² ∙ PC²/CD² so 2∙QR/( QT²∙PC²)=PC/( PF² ∙ CD²) | AK73: oxx | AL73: =xxx -> 10.48601038 | AM73: =xxy -> 1.757647879 | AQ73: X5Y5 | AR73: =AR70 -> 9.10609283 | AS73: =AS70 -> 3.420845472 | AV73: =AV72 -> -0.3236067977 | AW73: =-AW72 -> 0.2351141009 | AX73: =AV73*COS(AU72)+AW73*SIN(AU72) -> -0.2451590531 | AY73: =-AV73*SIN(AU72)+AW73*COS(AU72) -> -0.3160649279 | BE73: -14.4 | BF73: -0.2513274123 | BG73: 9.291922843 | BH73: -1.283781802 | BQ73: -0.2513274123 | BR73: 14.47888488 | BS73: -0.6922570351
A74: 0.471238898 | B74: 8.019058718 | C74: 2.269952499 | D74: 10.10093614 | E74: 2.547627247 | F74: 4.585729045 | G74: 5.611631188 | I74: 0.2094395102 | J74: 9.781476007 | K74: 2.079116908 | AA74: F⌐QR/(PH²∙QT²)= 1/(2∙CA²∙PB²)∙CP = a constant X CP. | AL74: =PX -> 9.490711791 | AM74: =PY -> 1.673468555 | AZ74: =CCC -> 10.29563014 | BE74: -10.8 | BF74: -0.1884955592 | BG74: 9.162289334 | BH74: -0.9538010111 | BQ74: -0.1884955592 | BR74: 14.51702558 | BS74: -0.5216253344
A75: 0.5026548246 | B75: 7.88676012 | C75: 2.408768371 | D75: =IF(ABS(COS(A75))>0.0000000001,AAA/COS(A75),D74) -> 10.27037703 | E75: =IF(ABS(COS(A75))>0.0000000001,BBB*TAN(A75),E74) -> 2.748773261 | F75: =IF(ABS(COS(A75))>0.001,AAA*TAN(A75),F74) -> 4.94779187 | G75: =IF(ABS(COS($A75))>0.0001,BBB/COS(A75),G74) -> 5.705765018 | I75: 0.2617993878 | J75: =10*COS($I75) -> 9.659258263 | K75: =10*SIN($I75) -> 2.588190451 | AQ75: pot | AR75: =IF(EPILOGI=1,-stathe/SQRT((xshmeio-CCC)^2+(yshmeio)^2),IF(EPILOGI=2,stathe/SQRT((xshmeio+CCC)^2+(yshmeio)^2),-stathe*(xshmeio^2+yshmeio^2)/2)) -> 3472.931152 | AZ75: =S_3X -> -10.29563014 | BE75: -7.2 | BF75: -0.1256637061 | BG75: 9.071531737 | BH75: -0.6316468922 | BQ75: -0.1256637061 | BR75: 14.54437697 | BS75: -0.3489354617
A76: 0.5340707511 | B76: 7.746678243 | C76: 2.545207079 | D76: 10.45609453 | E76: 2.956991757 | F76: 5.322585163 | G76: 5.808941405 | I76: =I75+PI()/60 -> 0.3141592654 | J76: 9.510565163 | K76: 3.090169944 | AQ76: kin_energ | AR76: =energia-AR75 -> 250.2822734 | AT76: =AT70 -> 250.2508742 | AU76: =AU70 -> 1 | AY76: r | AZ76: polar | BA76: =1.3 -> 1.3 | BE76: -3.6 | BF76: -0.06283185307 | BG76: 9.017794558 | BH76: -0.3145733363 | BQ76: -0.06283185307 | BR76: 14.5608311 | BS76: -0.1748689452
A77: 0.5654866776 | B77: 7.59895133 | C77: 2.679133975 | D77: 10.65936555 | E77: 3.173096488 | F77: 5.711573678 | G77: 5.921869749 | I77: 0.3665191429 | J77: 9.335804265 | K77: 3.583679495 | AQ77: velocity | AR77: =SQRT(2*AR76/MASS)/SMIK -> 3.335214625 | AY77: =SQRT((xshmeio-S_3X)^2+(yshmeio-S_3Y)^2) -> 19.29719845 | AZ77: =polar*ar -> 25.08635799 | BE77: 1.590277341e-13 | BF77: 2.775557562e-15 | BG77: 9 | BH77: 1.387778781e-14 | BQ77: 2.775557562e-15 | BR77: 14.56632304 | BS77: -0.0001127457725
A78: 0.5969026042 | B78: 7.443725168 | C78: 2.810416889 | D78: 10.88164839 | E78: 3.397996491 | F78: 6.116393684 | G78: 6.045360217 | I78: 0.4188790205 | J78: 9.135454576 | K78: 4.067366431 | AA78: 1) If the body is on P, we draw the conjugate diameters GP and DK and the line joining the focus S with P and the tangent RZ on P | AY78: tanar | AZ78: =(yshmeio-S_3Y)/(xshmeio-S_3X) -> 0.004522740307 | BE78: 3.6 | BF78: 0.06283185307 | BG78: 9.017794558 | BH78: 0.3145733363 | BQ78: 0.06283185307 | BR78: 14.5608311 | BS78: 0.1746434536
A79: 0.6283185307 | B79: 7.281152949 | C79: 2.938926261 | D79: 11.1246118 | E79: 3.63271264 | F79: 6.538882752 | G79: 6.180339887 | I79: 0.471238898 | J79: 8.910065242 | K79: 4.539904997 | AA79: 2) QR deviation from inertial motion. Deviation =QR = 1/2∙(F/m)∙t². F~QR/t² | AP79: =FORCECONST -> -363.7192302 | AR79: FORCE | AU79: METROD | AX79: rplu | AY79: =S_3X -> -10.29563014 | AZ79: =S_3X+polar*ar*COS(ATAN(tanar)) -> 14.79047128 | BE79: 7.2 | BF79: 0.1256637061 | BG79: 9.071531737 | BH79: 0.6316468922 | BQ79: 0.1256637061 | BR79: 14.54437697 | BS79: 0.3487099702
A80: 0.6597344573 | B80: 7.111395111 | C80: 3.064535268 | D80: 11.3901701 | E80: 3.878397555 | F80: 6.981115599 | G80: 6.32787228 | I80: 0.5235987756 | J80: 8.660254038 | K80: 5 | AA80: t ~area of RHP=area of HSP ~ QT Χ HP | AR80: =IF(vimata>3,xshmeio,1000) -> 9.001370952 | AS80: =IF(vimata>3,yshmeio,1000) -> 0.08727532464 | AU80: =-IF(EPILOGI=3,FORCECONST*ar,FORCECONST/ar^2) -> 0.9767372188 | AV80: =tanar -> 0.004522740307 | AW80: =ATAN(AV82) -> -1.566273617 | AX80: =AR80 -> 9.001370952 | AY80: =S_3Y -> -1.776356839e-15 | AZ80: =S_3Y+polar*ar*SIN(ATAN(tanar)) -> 0.113457922 | BE80: 10.8 | BF80: 0.1884955592 | BG80: 9.162289334 | BH80: 0.9538010111 | BQ80: 0.1884955592 | BR80: 14.51702558 | BS80: 0.5213998428
A81: 0.6911503838 | B81: 6.934619185 | C81: 3.187119949 | D81: 11.68052604 | E81: 4.13635973 | F81: 7.445447514 | G81: 6.489181136 | I81: 0.5759586532 | J81: 8.386705679 | K81: 5.44639035 | AA81: 3) Draw HI parallel to DK. Since DK conjugate to PG, RZ parallel to DK. It Is well known from optics that the RZ makes equal angle | AP81: MEGETHYNSY | AQ81: 3 | AR81: =AR80+MEGETHYNSY*SIGN(FORCECONST)*SIGN(AS80)*AU80*COS(AV81) -> 6.071189265 | AS81: =AS80+(AV80)*(AR81-AR80) -> 0.07402287382 | AU81: =SIGN(AR81-AR80) -> -1 | AV81: =ATAN(AV80) -> 0.004522709469 | AW81: =ATAN(AV80) -> 0.004522709469 | AX81: =AX80+SIGN(AX80)*1/AU80*kk*COS(ATAN(AV82)) -> 9.209739415 | BE81: 14.4 | BF81: 0.2513274123 | BG81: 9.291922843 | BH81: 1.283781802 | BQ81: 0.2513274123 | BR81: 14.47888488 | BS81: 0.6920315435
A82: 0.7225663103 | B82: 6.750999627 | C82: 3.306559327 | D82: 11.99822315 | E82: 4.408092962 | F82: 7.934567331 | G82: 6.665679527 | I82: 0.6283185307 | J82: 8.090169944 | K82: 5.877852523 | AA82: (so SP reflected to PH) perpendicular PF to DC is DFꞱHI so PH=PI. From Thales Since CH=CS then CH/CS=SM/MI so SM=EI | AR82: =AR81+AX83 -> 6.393729404 | AS82: =AS81+AY83 -> 0.3105981447 | AU82: =SIGN(AS81-AS80) -> -1 | AV82: =-1/AV80 -> -221.1048904 | AW82: =TAN(AW80) -> -221.1048904 | AX82: x | AY82: y | BE82: 18 | BF82: 0.3141592654 | BG82: 9.463160018 | BH82: 1.624598481 | BQ82: 0.3141592654 | BR82: 14.43010539 | BS82: 0.859931667
A83: 0.7539822369 | B83: 6.560717647 | C83: 3.42273553 | D83: 12.34621033 | E83: 4.695312529 | F83: 8.451562552 | G83: 6.85900574 | I83: 0.6806784083 | J83: 7.771459615 | K83: 6.29320391 | AA83: 4) Since MI=HE then PE=(PH-HE)=(PI-PM)=(SI-PM-SP)=2a -SM=2a-(2a)/2=a | AR83: =AR81+AX84 -> 6.395856102 | AS83: =AS81+AY84 -> -0.1596252479 | AT83: =SIGN(AS82-AS80) -> 1 | AU83: =-AV81 -> -0.004522709469 | AV83: =-AU81*DAA*COS(PI()/5) -> 0.3236067977 | AW83: =-AU82*DAA*SIN(PI()/5) -> 0.2351141009 | AX83: =AV83*COS(AU83)+AW83*SIN(AU83) -> 0.3225401389 | AY83: =-AV83*SIN(AU83)+AW83*COS(AU83) -> 0.2365752708 | BE83: 21.6 | BF83: 0.3769911184 | BG83: 9.679745763 | BH83: 1.979640044 | BQ83: 0.3769911184 | BR83: 14.37087961 | BS83: 1.024437588
A84: 0.7853981634 | B84: 6.363961031 | C84: 3.535533906 | D84: 12.72792206 | E84: 5 | F84: 9 | G84: 7.071067812 | I84: 0.7330382858 | J84: 7.431448255 | K84: 6.691306064 | AA84: 5) | AR84: =AR81 -> 6.071189265 | AS84: =AS81 -> 0.07402287382 | AT84: =-AU82 -> 1 | AV84: =AV83 -> 0.3236067977 | AW84: =-AW83 -> -0.2351141009 | AX84: =AV84*COS(AU83)+AW84*SIN(AU83) -> 0.3246668372 | AY84: =-AV84*SIN(AU83)+AW84*COS(AU83) -> -0.2336481218 | BE84: 25.2 | BF84: 0.4398229715 | BG84: 9.946652209 | BH84: 2.352821406 | BQ84: 0.4398229715 | BR84: 14.30144129 | BS84: 1.184900077
A85: 0.8168140899 | B85: 6.160923953 | C85: 3.644843137 | D85: 13.14737864 | E85: 5.324459202 | F85: 9.584026563 | G85: 7.304099246 | I85: 0.7853981634 | J85: 7.071067812 | K85: 7.071067812 | AA85: (SEE APPENDIX) | BE85: 28.8 | BF85: 0.5026548246 | BG85: =IF(ABS(COS($BF85))>0.0000000001,AAA/COS($BF85),"") -> 10.27037703 | BH85: 2.748773261 | BQ85: 0.5026548246 | BR85: 14.22206447 | BS85: 1.340685862
A86: 0.8482300165 | B86: 5.951806788 | C86: 3.750555348 | D86: 13.60931275 | E86: 5.671386746 | F86: 10.20849614 | G86: 7.560729305 | I86: 0.837758041 | J86: 6.691306064 | K86: 7.431448255 | AA86: 6) From QRPX rectangle QR/PV=PX/PV=PE/PC=AC/PC | BE86: 32.4 | BF86: 0.5654866776 | BG86: 10.65936555 | BH86: 3.173096488 | BQ86: 0.5654866776 | BR86: 14.13306241 | BS86: 1.491180127
A87: 0.879645943 | B87: 5.736815908 | C87: 3.852566214 | D87: 14.11933053 | E87: 6.043961752 | F87: 10.87913115 | G87: 7.844072518 | I87: 0.8901179185 | J87: 6.29320391 | K87: 7.771459615 | AA87: 7) QT/QX=PF/PE QT²=QX²·PF²/AC² = in the limit t→0 GV=2PC and | BE87: 36 | BF87: 0.6283185307 | BG87: 11.1246118 | BH87: 3.63271264 | BQ87: 0.6283185307 | BR87: 14.03478636 | BS87: 1.63578894
A88: 0.9110618695 | B88: 5.516163483 | C88: 3.950775062 | D88: 14.68411882 | E88: 6.445961159 | F88: 11.60273009 | G88: 8.157843788 | I88: 0.9424777961 | J88: 5.877852523 | K88: 8.090169944 | AA88: PV=QR PC/AC | BE88: 39.6 | BF88: 0.6911503838 | BG88: 11.68052604 | BH88: 4.13635973 | BQ88: 0.6911503838 | BR88: 13.92762417 | BS88: 1.773941597
A89: 0.9424777961 | B89: 5.290067271 | C89: 4.045084972 | D89: 15.31171455 | E89: 6.881909602 | F89: 12.38743728 | G89: 8.506508084 | I89: 0.9948376736 | J89: 5.44639035 | K89: 8.386705679 | AA89: QX²=QV²=2PC· PV·DC²/PC²= 2PV·DC²/PC or since PF·DC=BC·AC and | BE89: 43.2 | BF89: 0.7539822369 | BG89: 12.34621033 | BH89: 4.695312529 | BQ89: 0.7539822369 | BR89: 13.81199877 | BS89: 1.905092872
A90: 0.9738937226 | B90: 5.058750401 | C90: 4.135402871 | D90: 16.01185937 | E90: 7.357276579 | F90: 13.24309784 | G90: 8.895477427 | I90: 1.047197551 | J90: 5 | K90: 8.660254038 | AA90: QT²=QX²·PF²/AC²= 2PC· PV·DC²/PC²·PF²/AC=2QR·PC/AC ·BC²·AC/PC=2QR·BC² | BE90: 46.8 | BF90: 0.8168140899 | BG90: 13.14737864 | BH90: 5.324459202 | BQ90: 0.8168140899 | BR90: 13.68836647 | BS90: 2.028725171
A91: 1.005309649 | B91: 4.822441155 | C91: 4.221639628 | D91: 16.79647245 | E91: 7.8787393 | F91: 14.18173074 | G91: 9.331373584 | I91: 1.099557429 | J91: 4.539904997 | K91: 8.910065242 | BE91: 50.4 | BF91: 0.879645943 | BG91: 14.11933053 | BH91: =IF(ABS(COS($BF91))>0.0000000001,BBB*TAN($BF91),"") -> 6.043961752 | BQ91: 0.879645943 | BR91: =x_ken+r_cakmp*COS($BQ91) -> 13.5572152 | BS91: =y_ken+r_cakmp*SIN(BQ91) -> 2.144350573
A92: 1.036725576 | B92: 4.581372742 | C92: 4.303710135 | D92: 17.68029029 | E92: 8.454538279 | F92: 15.2181689 | G92: 9.822383494 | I92: 1.151917306 | J92: 4.067366431 | K92: 9.135454576 | AA92: Q.O.D. | BE92: =DEGREES(BF92) -> 54 | BF92: 0.9424777961 | BG92: 15.31171455 | BH92: 6.881909602 | BQ92: 0.9424777961 | BR92: 13.41906254 | BS92: 2.251512759
A93: 1.068141502 | B93: 4.335783067 | C93: 4.3815334 | D93: 18.68174647 | E93: 9.094966236 | F93: 16.37093923 | G93: 10.37874804 | I93: 1.204277184 | J93: 3.583679495 | K93: 9.335804265 | BE93: 57.6 | BF93: =BF92+PI()/50 -> 1.005309649 | BG93: 16.79647245 | BH93: 7.8787393 | BQ93: =BQ92+PI()/50 -> 1.005309649 | BR93: 13.27445373 | BS93: 2.349788807
A94: 1.099557429 | B94: 4.085914498 | C94: 4.455032621 | D94: 19.82420338 | E94: 9.813052528 | F94: 17.66349455 | G94: 11.01344632 | I94: 1.256637061 | J94: 3.090169944 | K94: 9.510565163 | BE94: 61.2 | BF94: 1.068141502 | BG94: 18.68174647 | BH94: 9.094966236 | BQ94: 1.068141502 | BR94: 13.12395946 | BS94: 2.438790867
A95: 1.130973355 | B95: 3.832013624 | C95: 4.524135262 | D95: 21.1377119 | E95: 10.62554087 | F95: 19.12597356 | G95: 11.74317328 | I95: 1.308996939 | J95: 2.588190451 | K95: 9.659258263 | BE95: 64.8 | BF95: 1.130973355 | BG95: 21.1377119 | BH95: 10.62554087 | BQ95: 1.130973355 | BR95: 12.96817368 | BS95: 2.518167689
A96: 1.162389282 | B96: 3.574331016 | C96: 4.588773128 | D96: 22.66158328 | E96: 11.55431827 | F96: 20.79777288 | G96: 12.58976849 | I96: 1.361356817 | J96: 2.079116908 | K96: 9.781476007 | BE96: 68.4 | BF96: 1.193805208 | BG96: 24.44824702 | BH96: 12.62855845 | BQ96: 1.193805208 | BR96: 12.80771119 | BS96: 2.587606009
A97: 1.193805208 | B97: 3.313120974 | C97: 4.648882429 | D97: 24.44824702 | E97: 12.62855845 | F97: 22.73140521 | G97: 13.58235946 | I97: 1.413716694 | J97: 1.56434465 | K97: 9.876883406 | BE97: 72 | BF97: 1.256637061 | BG97: 29.1246118 | BH97: 15.38841769 | BQ97: 1.256637061 | BR97: 12.64320527 | BS97: 2.646831785
A98: 1.225221135 | B98: 3.048641282 | C98: 4.704403845 | D98: 26.56921314 | E98: 13.88803427 | F98: 24.99846169 | G98: 14.76067396 | I98: 1.466076572 | J98: 1.045284633 | K98: 9.945218954 | BE98: 75.6 | BF98: 1.319468915 | BG98: 36.1896501 | BH98: 19.47371427 | BQ98: 1.319468915 | BR98: 12.47530514 | BS98: 2.69561128
A99: 1.256637061 | B99: 2.781152949 | C99: 4.755282581 | D99: 29.1246118 | E99: 15.38841769 | F99: 27.69915183 | G99: 16.18033989 | I99: 1.518436449 | J99: 0.5233595624 | K99: 9.986295348 | BE99: 79.2 | BF99: 1.382300768 | BG99: 48.03040271 | BH99: 26.21091791 | BQ99: 1.382300768 | BR99: 12.30467344 | BS99: 2.733751984
A100: 1.288052988 | B100: 2.510919954 | C100: 4.801468428 | D100: 32.25909287 | E100: 17.21011288 | F100: 30.97820319 | G100: 17.92171826 | I100: 1.570796327 | J100: 1.615569657e-14 | K100: 10 | BE100: 82.8 | BF100: 1.445132621 | BG100: 71.8085678 | BH100: 39.57907544 | BQ100: 1.445132621 | BR100: 12.13198357 | BS100: 2.761103372
A101: 1.319468915 | B101: 2.238208984 | C101: 4.842915806 | D101: 36.1896501 | E101: 19.47371427 | F101: 35.05268569 | G101: 20.10536117 | I101: 1.623156204 | J101: -0.5233595624 | K101: 9.986295348 | BE101: 86.4 | BF101: 1.507964474 | BG101: 143.33374 | BH101: 79.47272422 | BQ101: 1.507964474 | BR101: 11.95791705 | BS101: 2.777557503
A102: 1.350884841 | B102: 1.963289173 | C102: 4.87958381 | D102: 41.25729471 | E102: 22.36871415 | F102: 40.26368546 | G102: 22.92071929 | I102: 1.675516082 | J102: -1.045284633 | K102: 9.945218954 | BE102: 90 | BF102: 1.570796327 | BQ102: 1.570796327 | BR102: 11.78316086 | BS102: 2.783049438
A103: 1.382300768 | B103: 1.686431831 | C103: 4.911436254 | D103: 48.03040271 | E103: 26.21091791 | F103: 47.17965223 | G103: 26.68355706 | I103: 1.727875959 | J103: -1.56434465 | K103: 9.876883406 | BE103: 93.6 | BF103: 1.63362818 | BG103: -143.33374 | BH103: -79.47272422 | BQ103: 1.63362818 | BR103: 11.60840466 | BS103: 2.777557503
A104: 1.413716694 | B104: 1.407910185 | C104: 4.938441703 | D104: 57.53207899 | E104: 31.56875757 | F104: 56.82376363 | G104: 31.96226611 | I104: 1.780235837 | J104: -2.079116908 | K104: 9.781476007 | BE104: 97.2 | BF104: 1.696460033 | BG104: -71.8085678 | BH104: -39.57907544 | BQ104: 1.696460033 | BR104: 11.43433814 | BS104: 2.761103372
A105: 1.445132621 | B105: 1.127999102 | C105: 4.960573507 | D105: 71.8085678 | E105: 39.57907544 | F105: 71.24233579 | G105: 39.89364878 | I105: 1.832595715 | J105: -2.588190451 | K105: 9.659258263 | BE105: 100.8 | BF105: 1.759291886 | BG105: -48.03040271 | BH105: -26.21091791 | BQ105: 1.759291886 | BR105: 11.26164827 | BS105: 2.733751984
A106: 1.476548547 | B106: 0.8469748199 | C106: 4.977809823 | D106: 95.63448417 | E106: 52.89447497 | F106: 95.21005494 | G106: 53.13026898 | I106: 1.884955592 | J106: -3.090169944 | K106: 9.510565163 | BE106: 104.4 | BF106: 1.822123739 | BG106: -36.1896501 | BH106: -19.47371427 | BQ106: 1.822123739 | BR106: 11.09101657 | BS106: 2.69561128
A107: 1.507964474 | B107: 0.5651146758 | C107: 4.990133642 | D107: =IF(ABS(COS(A107))>0.0000000001,AAA/COS(A107),D106) -> 143.33374 | E107: =IF(ABS(COS(A107))>0.0000000001,BBB*TAN(A107),E106) -> 79.47272422 | F107: =IF(ABS(COS(A107))>0.001,AAA*TAN(A107),F106) -> 143.0509036 | G107: =IF(ABS(COS($A107))>0.0001,BBB/COS(A107),G106) -> 79.62985555 | I107: 1.93731547 | J107: -3.583679495 | K107: 9.335804265 | BE107: 108 | BF107: 1.884955592 | BG107: -29.1246118 | BH107: -15.38841769 | BQ107: 1.884955592 | BR107: 10.92311644 | BS107: 2.646831785
A108: 1.5393804 | B108: 0.2826968317 | C108: 4.997532802 | D108: 286.5260269 | E108: 159.1025798 | F108: 286.3846436 | G108: 159.181126 | I108: 1.989675347 | J108: -4.067366431 | K108: 9.135454576 | BE108: 111.6 | BF108: 1.947787445 | BG108: -24.44824702 | BH108: -12.62855845 | BQ108: 1.947787445 | BR108: 10.75861052 | BS108: 2.587606009
A109: 1.570796327 | B109: -2.342950053e-14 | C109: 5 | I109: 2.042035225 | J109: -4.539904997 | K109: 8.910065242 | BE109: 115.2 | BF109: 2.010619298 | BG109: -21.1377119 | BH109: -10.62554087 | BQ109: 2.010619298 | BR109: 10.59814803 | BS109: 2.518167689
A110: 1.602212253 | B110: -0.2826968317 | C110: 4.997532802 | I110: 2.094395102 | J110: -5 | K110: 8.660254038 | BE110: 118.8 | BF110: 2.073451151 | BG110: -18.68174647 | BH110: -9.094966236 | BQ110: 2.073451151 | BR110: 10.44236225 | BS110: 2.438790867
A111: 1.63362818 | B111: -0.5651146758 | C111: 4.990133642 | D111: -143.33374 | E111: -79.47272422 | F111: -143.0509036 | G111: -79.62985555 | I111: 2.14675498 | J111: -5.44639035 | K111: 8.386705679 | BE111: 122.4 | BF111: 2.136283004 | BG111: -16.79647245 | BH111: -7.8787393 | BQ111: 2.136283004 | BR111: 10.29186798 | BS111: 2.349788807
A112: 1.665044106 | B112: -0.8469748199 | C112: 4.977809823 | D112: -95.63448417 | E112: -52.89447497 | F112: -95.21005494 | G112: -53.13026898 | I112: 2.199114858 | J112: -5.877852523 | K112: 8.090169944 | BE112: 126 | BF112: 2.199114858 | BG112: -15.31171455 | BH112: -6.881909602 | BQ112: 2.199114858 | BR112: 10.14725917 | BS112: 2.251512759
A113: 1.696460033 | B113: -1.127999102 | C113: 4.960573507 | D113: -71.8085678 | E113: -39.57907544 | F113: -71.24233579 | G113: -39.89364878 | I113: 2.251474735 | J113: -6.29320391 | K113: 7.771459615 | BE113: 129.6 | BF113: 2.261946711 | BG113: -14.11933053 | BH113: -6.043961752 | BQ113: 2.261946711 | BR113: 10.00910651 | BS113: 2.144350573
A114: 1.727875959 | B114: -1.407910185 | C114: 4.938441703 | D114: -57.53207899 | E114: -31.56875757 | F114: -56.82376363 | G114: -31.96226611 | I114: 2.303834613 | J114: -6.691306064 | K114: 7.431448255 | BE114: 133.2 | BF114: 2.324778564 | BG114: -13.14737864 | BH114: -5.324459202 | BQ114: 2.324778564 | BR114: 9.877955237 | BS114: 2.028725171
A115: 1.759291886 | B115: -1.686431831 | C115: 4.911436254 | D115: -48.03040271 | E115: -26.21091791 | F115: -47.17965223 | G115: -26.68355706 | I115: 2.35619449 | J115: -7.071067812 | K115: 7.071067812 | BE115: 136.8 | BF115: 2.387610417 | BG115: -12.34621033 | BH115: -4.695312529 | BQ115: 2.387610417 | BR115: 9.754322939 | BS115: 1.905092872
A116: 1.790707813 | B116: -1.963289173 | C116: 4.87958381 | D116: -41.25729471 | E116: -22.36871415 | F116: -40.26368546 | G116: -22.92071929 | I116: 2.408554368 | J116: -7.431448255 | K116: 6.691306064 | BE116: 140.4 | BF116: 2.45044227 | BG116: -11.68052604 | BH116: -4.13635973 | BQ116: 2.45044227 | BR116: 9.638697536 | BS116: 1.773941597
A117: 1.822123739 | B117: -2.238208984 | C117: 4.842915806 | D117: -36.1896501 | E117: -19.47371427 | F117: -35.05268569 | G117: -20.10536117 | I117: 2.460914245 | J117: -7.771459615 | K117: 6.29320391 | BE117: 144 | BF117: 2.513274123 | BG117: =IF(ABS(COS($BF117))>0.0000000001,AAA/COS($BF117),"") -> -11.1246118 | BH117: -3.63271264 | BQ117: 2.513274123 | BR117: 9.531535351 | BS117: 1.63578894
A118: 1.853539666 | B118: -2.510919954 | C118: 4.801468428 | D118: -32.25909287 | E118: -17.21011288 | F118: -30.97820319 | G118: -17.92171826 | I118: 2.513274123 | J118: -8.090169944 | K118: 5.877852523 | BE118: 147.6 | BF118: 2.576105976 | BG118: -10.65936555 | BH118: -3.173096488 | BQ118: 2.576105976 | BR118: 9.433259303 | BS118: 1.491180127
A119: 1.884955592 | B119: -2.781152949 | C119: 4.755282581 | D119: -29.1246118 | E119: -15.38841769 | F119: -27.69915183 | G119: -16.18033989 | I119: 2.565634 | J119: -8.386705679 | K119: 5.44639035 | BE119: 151.2 | BF119: 2.638937829 | BG119: -10.27037703 | BH119: -2.748773261 | BQ119: 2.638937829 | BR119: 9.344257242 | BS119: 1.340685862
A120: 1.916371519 | B120: -3.048641282 | C120: 4.704403845 | D120: -26.56921314 | E120: -13.88803427 | F120: -24.99846169 | G120: -14.76067396 | I120: 2.617993878 | J120: -8.660254038 | K120: 5 | BE120: 154.8 | BF120: 2.701769682 | BG120: -9.946652209 | BH120: -2.352821406 | BQ120: 2.701769682 | BR120: 9.26488042 | BS120: 1.184900077
A121: 1.947787445 | B121: -3.313120974 | C121: 4.648882429 | D121: -24.44824702 | E121: -12.62855845 | F121: -22.73140521 | G121: -13.58235946 | I121: 2.670353756 | J121: -8.910065242 | K121: 4.539904997 | BE121: 158.4 | BF121: 2.764601535 | BG121: -9.679745763 | BH121: -1.979640044 | BQ121: 2.764601535 | BR121: 9.195442101 | BS121: 1.024437588
A122: 1.979203372 | B122: -3.574331016 | C122: 4.588773128 | D122: -22.66158328 | E122: -11.55431827 | F122: -20.79777288 | G122: -12.58976849 | I122: 2.722713633 | J122: -9.135454576 | K122: 4.067366431 | BE122: 162 | BF122: 2.827433388 | BG122: -9.463160018 | BH122: -1.624598481 | BQ122: 2.827433388 | BR122: 9.136216325 | BS122: 0.859931667
A123: 2.010619298 | B123: -3.832013624 | C123: 4.524135262 | D123: -21.1377119 | E123: -10.62554087 | F123: -19.12597356 | G123: -11.74317328 | I123: 2.775073511 | J123: -9.335804265 | K123: 3.583679495 | BE123: 165.6 | BF123: 2.890265241 | BG123: -9.291922843 | BH123: -1.283781802 | BQ123: 2.890265241 | BR123: 9.08743683 | BS123: 0.6920315435
A124: 2.042035225 | B124: -4.085914498 | C124: 4.455032621 | D124: -19.82420338 | E124: -9.813052528 | F124: -17.66349455 | G124: -11.01344632 | I124: 2.827433388 | J124: -9.510565163 | K124: 3.090169944 | BE124: 169.2 | BF124: 2.953097094 | BG124: -9.162289334 | BH124: -0.9538010111 | BQ124: 2.953097094 | BR124: 9.049296126 | BS124: 0.5213998428
A125: 2.073451151 | B125: -4.335783067 | C125: 4.3815334 | D125: -18.68174647 | E125: -9.094966236 | F125: -16.37093923 | G125: -10.37874804 | I125: 2.879793266 | J125: -9.659258263 | K125: 2.588190451 | BE125: 172.8 | BF125: 3.015928947 | BG125: -9.071531737 | BH125: -0.6316468922 | BQ125: 3.015928947 | BR125: 9.021944737 | BS125: 0.3487099702
A126: =A125+PI()/100 -> 2.104867078 | B126: -4.581372742 | C126: 4.303710135 | D126: -17.68029029 | E126: -8.454538279 | F126: -15.2181689 | G126: -9.822383494 | I126: 2.932153143 | J126: -9.781476007 | K126: 2.079116908 | BE126: 176.4 | BF126: 3.078760801 | BG126: -9.017794558 | BH126: -0.3145733363 | BQ126: 3.078760801 | BR126: 9.005490607 | BS126: 0.1746434536
A127: 2.136283004 | B127: -4.822441155 | C127: 4.221639628 | D127: -16.79647245 | E127: -7.8787393 | F127: -14.18173074 | G127: -9.331373584 | I127: 2.984513021 | J127: -9.876883406 | K127: 1.56434465 | BF127: 3.141592654 | BG127: -9 | BH127: 2.603277836e-14 | BQ127: 3.141592654 | BR127: 8.999998672 | BS127: -0.0001127457726
A128: 2.167698931 | B128: -5.058750401 | C128: 4.135402871 | D128: -16.01185937 | E128: -7.357276579 | F128: -13.24309784 | G128: -8.895477427 | I128: 3.036872898 | J128: -9.945218954 | K128: 1.045284633
A129: 2.199114858 | B129: -5.290067271 | C129: 4.045084972 | D129: -15.31171455 | E129: -6.881909602 | F129: -12.38743728 | G129: -8.506508084 | I129: 3.089232776 | J129: -9.986295348 | K129: 0.5233595624
A130: 2.230530784 | B130: -5.516163483 | C130: 3.950775062 | D130: -14.68411882 | E130: -6.445961159 | F130: -11.60273009 | G130: -8.157843788 | I130: 3.141592654 | J130: -10 | K130: 4.119317734e-14
A131: 2.261946711 | B131: -5.736815908 | C131: 3.852566214 | D131: -14.11933053 | E131: -6.043961752 | F131: -10.87913115 | G131: -7.844072518
A132: 2.293362637 | B132: -5.951806788 | C132: 3.750555348 | D132: -13.60931275 | E132: -5.671386746 | F132: -10.20849614 | G132: -7.560729305
A133: 2.324778564 | B133: -6.160923953 | C133: 3.644843137 | D133: -13.14737864 | E133: -5.324459202 | F133: -9.584026563 | G133: -7.304099246
A134: 2.35619449 | B134: -6.363961031 | C134: 3.535533906 | D134: -12.72792206 | E134: -5 | F134: -9 | G134: -7.071067812
A135: 2.387610417 | B135: -6.560717647 | C135: 3.42273553 | D135: -12.34621033 | E135: -4.695312529 | F135: -8.451562552 | G135: -6.85900574
A136: 2.419026343 | B136: -6.750999627 | C136: 3.306559327 | D136: -11.99822315 | E136: -4.408092962 | F136: -7.934567331 | G136: -6.665679527
A137: 2.45044227 | B137: =AAA*COS(A137) -> -6.934619185 | C137: =BBB*SIN(A137) -> 3.187119949 | D137: -11.68052604 | E137: -4.13635973 | F137: -7.445447514 | G137: -6.489181136
A138: 2.481858196 | B138: -7.111395111 | C138: 3.064535268 | D138: -11.3901701 | E138: -3.878397555 | F138: -6.981115599 | G138: -6.32787228
A139: 2.513274123 | B139: -7.281152949 | C139: 2.938926261 | D139: =IF(ABS(COS(A139))>0.0000000001,AAA/COS(A139),D138) -> -11.1246118 | E139: =IF(ABS(COS(A139))>0.0000000001,BBB*TAN(A139),E138) -> -3.63271264 | F139: =IF(ABS(COS(A139))>0.001,AAA*TAN(A139),F138) -> -6.538882752 | G139: =IF(ABS(COS($A139))>0.0001,BBB/COS(A139),G138) -> -6.180339887
A140: 2.544690049 | B140: -7.443725168 | C140: 2.810416889 | D140: -10.88164839 | E140: -3.397996491 | F140: -6.116393684 | G140: -6.045360217
A141: 2.576105976 | B141: -7.59895133 | C141: 2.679133975 | D141: -10.65936555 | E141: -3.173096488 | F141: -5.711573678 | G141: -5.921869749
A142: 2.607521902 | B142: -7.746678243 | C142: 2.545207079 | D142: -10.45609453 | E142: -2.956991757 | F142: -5.322585163 | G142: -5.808941405
A143: 2.638937829 | B143: -7.88676012 | C143: 2.408768371 | D143: -10.27037703 | E143: -2.748773261 | F143: -4.94779187 | G143: -5.705765018
A144: 2.670353756 | B144: -8.019058718 | C144: 2.269952499 | D144: -10.10093614 | E144: -2.547627247 | F144: -4.585729045 | G144: -5.611631188
A145: 2.701769682 | B145: -8.143443472 | C145: 2.128896458 | D145: -9.946652209 | E145: -2.352821406 | F145: -4.235078531 | G145: -5.525917894
A146: 2.733185609 | B146: -8.259791631 | C146: 1.985739453 | D146: -9.806542782 | E146: -2.163693211 | F146: -3.89464778 | G146: -5.448079323
A147: 2.764601535 | B147: -8.367988373 | C147: 1.840622763 | D147: -9.679745763 | E147: -1.979640044 | F147: -3.563352079 | G147: -5.377636535
A148: 2.796017462 | B148: -8.467926921 | C148: 1.693689601 | D148: -9.565505319 | E148: -1.800110765 | F148: -3.240199378 | G148: -5.314169622
A149: 2.827433388 | B149: -8.559508647 | C149: 1.545084972 | D149: -9.463160018 | E149: -1.624598481 | F149: -2.924277266 | G149: -5.257311121
A150: 2.858849315 | B150: -8.642643171 | C150: 1.39495553 | D150: -9.372132853 | E150: -1.452634284 | F150: -2.614741711 | G150: -5.206740474
A151: 2.890265241 | B151: -8.71724845 | C151: 1.243449436 | D151: -9.291922843 | E151: -1.283781802 | F151: -2.310807243 | G151: -5.162179357
A152: 2.921681168 | B152: -8.783250857 | C152: 1.090716207 | D152: -9.222097981 | E152: -1.117632414 | F152: -2.011738346 | G152: -5.123387767
A153: 2.953097094 | B153: -8.840585257 | C153: 0.9369065729 | D153: -9.162289334 | E153: -0.9538010111 | F153: -1.71684182 | G153: -5.090160741
A154: 2.984513021 | B154: -8.889195065 | C154: 0.7821723252 | D154: -9.112186132 | E154: -0.7919222016 | F154: -1.425459963 | G154: -5.062325629
A155: 3.015928947 | B155: -8.929032312 | C155: 0.6266661678 | D155: -9.071531737 | E155: -0.6316468922 | F155: -1.136964406 | G155: -5.039739854
A156: 3.047344874 | B156: -8.960057681 | C156: 0.4705415666 | D156: -9.040120374 | E156: -0.4726391559 | F156: -0.8507504806 | G156: -5.022289097
A157: 3.078760801 | B157: -8.982240556 | C157: 0.3139525976 | D157: -9.017794558 | E157: -0.3145733363 | F157: -0.5662320053 | G157: -5.009885865
A158: 3.110176727 | B158: -8.995559043 | C158: 0.1570537954 | D158: -9.004443149 | E158: -0.1571313302 | F158: -0.2828363944 | G158: -5.002468416
A159: 3.141592654 | B159: -9 | C159: 1.615569657e-14 | D159: -9 | E159: -1.615569657e-14 | F159: -2.908025383e-14 | G159: -5
A160: 3.17300858 | B160: -8.995559043 | C160: -0.1570537954 | D160: -9.004443149 | E160: 0.1571313302 | F160: 0.2828363944 | G160: -5.002468416
A161: 3.204424507 | B161: -8.982240556 | C161: -0.3139525976 | D161: -9.017794558 | E161: 0.3145733363 | F161: 0.5662320053 | G161: -5.009885865
A162: 3.235840433 | B162: -8.960057681 | C162: -0.4705415666 | D162: -9.040120374 | E162: 0.4726391559 | F162: 0.8507504806 | G162: -5.022289097
A163: 3.26725636 | B163: -8.929032312 | C163: -0.6266661678 | D163: -9.071531737 | E163: 0.6316468922 | F163: 1.136964406 | G163: -5.039739854
A164: 3.298672286 | B164: -8.889195065 | C164: -0.7821723252 | D164: -9.112186132 | E164: 0.7919222016 | F164: 1.425459963 | G164: -5.062325629
A165: 3.330088213 | B165: -8.840585257 | C165: -0.9369065729 | D165: -9.162289334 | E165: 0.9538010111 | F165: 1.71684182 | G165: -5.090160741
A166: 3.361504139 | B166: -8.783250857 | C166: -1.090716207 | D166: -9.222097981 | E166: 1.117632414 | F166: 2.011738346 | G166: -5.123387767
A167: 3.392920066 | B167: -8.71724845 | C167: -1.243449436 | D167: -9.291922843 | E167: 1.283781802 | F167: 2.310807243 | G167: -5.162179357
A168: 3.424335992 | B168: -8.642643171 | C168: -1.39495553 | D168: -9.372132853 | E168: 1.452634284 | F168: 2.614741711 | G168: -5.206740474
A169: 3.455751919 | B169: -8.559508647 | C169: -1.545084972 | D169: -9.463160018 | E169: 1.624598481 | F169: 2.924277266 | G169: -5.257311121
A170: 3.487167845 | B170: -8.467926921 | C170: -1.693689601 | D170: -9.565505319 | E170: 1.800110765 | F170: 3.240199378 | G170: -5.314169622
A171: 3.518583772 | B171: -8.367988373 | C171: -1.840622763 | D171: =IF(ABS(COS(A171))>0.0000000001,AAA/COS(A171),D170) -> -9.679745763 | E171: =IF(ABS(COS(A171))>0.0000000001,BBB*TAN(A171),E170) -> 1.979640044 | F171: =IF(ABS(COS(A171))>0.001,AAA*TAN(A171),F170) -> 3.563352079 | G171: =IF(ABS(COS($A171))>0.0001,BBB/COS(A171),G170) -> -5.377636535
A172: 3.549999699 | B172: -8.259791631 | C172: -1.985739453 | D172: -9.806542782 | E172: 2.163693211 | F172: 3.89464778 | G172: -5.448079323
A173: 3.581415625 | B173: -8.143443472 | C173: -2.128896458 | D173: -9.946652209 | E173: 2.352821406 | F173: 4.235078531 | G173: -5.525917894
A174: 3.612831552 | B174: -8.019058718 | C174: -2.269952499 | D174: -10.10093614 | E174: 2.547627247 | F174: 4.585729045 | G174: -5.611631188
A175: 3.644247478 | B175: -7.88676012 | C175: -2.408768371 | D175: -10.27037703 | E175: 2.748773261 | F175: 4.94779187 | G175: -5.705765018
A176: 3.675663405 | B176: -7.746678243 | C176: -2.545207079 | D176: -10.45609453 | E176: 2.956991757 | F176: 5.322585163 | G176: -5.808941405
A177: 3.707079331 | B177: -7.59895133 | C177: -2.679133975 | D177: -10.65936555 | E177: 3.173096488 | F177: 5.711573678 | G177: -5.921869749
A178: 3.738495258 | B178: -7.443725168 | C178: -2.810416889 | D178: -10.88164839 | E178: 3.397996491 | F178: 6.116393684 | G178: -6.045360217
A179: 3.769911184 | B179: -7.281152949 | C179: -2.938926261 | D179: -11.1246118 | E179: 3.63271264 | F179: 6.538882752 | G179: -6.180339887
A180: 3.801327111 | B180: -7.111395111 | C180: -3.064535268 | D180: -11.3901701 | E180: 3.878397555 | F180: 6.981115599 | G180: -6.32787228
A181: 3.832743037 | B181: -6.934619185 | C181: -3.187119949 | D181: -11.68052604 | E181: 4.13635973 | F181: 7.445447514 | G181: -6.489181136
A182: 3.864158964 | B182: -6.750999627 | C182: -3.306559327 | D182: -11.99822315 | E182: 4.408092962 | F182: 7.934567331 | G182: -6.665679527
A183: 3.89557489 | B183: -6.560717647 | C183: -3.42273553 | D183: -12.34621033 | E183: 4.695312529 | F183: 8.451562552 | G183: -6.85900574
A184: 3.926990817 | B184: -6.363961031 | C184: -3.535533906 | D184: -12.72792206 | E184: 5 | F184: 9 | G184: -7.071067812
A185: 3.958406744 | B185: -6.160923953 | C185: -3.644843137 | D185: -13.14737864 | E185: 5.324459202 | F185: 9.584026563 | G185: -7.304099246
A186: 3.98982267 | B186: -5.951806788 | C186: -3.750555348 | D186: -13.60931275 | E186: 5.671386746 | F186: 10.20849614 | G186: -7.560729305
A187: 4.021238597 | B187: -5.736815908 | C187: -3.852566214 | D187: -14.11933053 | E187: 6.043961752 | F187: 10.87913115 | G187: -7.844072518
A188: 4.052654523 | B188: -5.516163483 | C188: -3.950775062 | D188: -14.68411882 | E188: 6.445961159 | F188: 11.60273009 | G188: -8.157843788
A189: 4.08407045 | B189: -5.290067271 | C189: -4.045084972 | D189: -15.31171455 | E189: 6.881909602 | F189: 12.38743728 | G189: -8.506508084
A190: =A189+PI()/100 -> 4.115486376 | B190: -5.058750401 | C190: -4.135402871 | D190: -16.01185937 | E190: 7.357276579 | F190: 13.24309784 | G190: -8.895477427
A191: =A190+PI()/100 -> 4.146902303 | B191: -4.822441155 | C191: -4.221639628 | D191: -16.79647245 | E191: 7.8787393 | F191: 14.18173074 | G191: -9.331373584
A192: 4.178318229 | B192: -4.581372742 | C192: -4.303710135 | D192: -17.68029029 | E192: 8.454538279 | F192: 15.2181689 | G192: -9.822383494
A193: 4.209734156 | B193: -4.335783067 | C193: -4.3815334 | D193: -18.68174647 | E193: 9.094966236 | F193: 16.37093923 | G193: -10.37874804
A194: 4.241150082 | B194: -4.085914498 | C194: -4.455032621 | D194: -19.82420338 | E194: 9.813052528 | F194: 17.66349455 | G194: -11.01344632
A195: 4.272566009 | B195: -3.832013624 | C195: -4.524135262 | D195: -21.1377119 | E195: 10.62554087 | F195: 19.12597356 | G195: -11.74317328
A196: 4.303981935 | B196: -3.574331016 | C196: -4.588773128 | D196: -22.66158328 | E196: 11.55431827 | F196: 20.79777288 | G196: -12.58976849
A197: 4.335397862 | B197: -3.313120974 | C197: -4.648882429 | D197: -24.44824702 | E197: 12.62855845 | F197: 22.73140521 | G197: -13.58235946
A198: 4.366813788 | B198: -3.048641282 | C198: -4.704403845 | D198: -26.56921314 | E198: 13.88803427 | F198: 24.99846169 | G198: -14.76067396
A199: 4.398229715 | B199: -2.781152949 | C199: -4.755282581 | D199: -29.1246118 | E199: 15.38841769 | F199: 27.69915183 | G199: -16.18033989
A200: 4.429645642 | B200: -2.510919954 | C200: -4.801468428 | D200: -32.25909287 | E200: 17.21011288 | F200: 30.97820319 | G200: -17.92171826
... 9 more rows

Sheet elastic

Sheet Sheet3
